Workbook

Sheet START
B1: ABOUT THIS TEMPLATE
B2: Use this Business Expense Budget workbook to track Planned and Actual Expenses and Variances.
B3: Fill in Company Name and add Logo.
B4: Enter details in tables in Planned Expenses worksheet and Actual Expenses worksheet.
B5: Tables are auto updated in Expense Variances worksheet and charts in Expense Analysis worksheet
B6: Note:
B7: Additional instructions have been provided in column A in each worksheet. This text has been intentionally hidden. To remove text, select column A, then select DELETE. To unhide text, select column A, then change font color.
B8: To learn more about tables, press SHIFT and then F10 within a table, select the TABLE option, and then select ALTERNATIVE TEXT

Sheet PLANNED EXPENSES
A1: Enter Planned Employee Costs, Office Costs, Marketing Costs, and Training or Travel Cost in respective tables in this worksheet. Totals are auto calculated. Helpful instructions on how to use this worksheet are in cells in this column. Arrow down to get started.
A2: Enter Company Name in cell at right and Logo in cell N2. Title of this worksheet is in cell K2. | B2: Company Name | K2: Detailed Expense Estimates | N2: Logo placeholder is in this cell.
A3: Tip is in cell K3. | K3: Shaded cells are calculations.
A4: Planned Expenses label is in cell at right, months in cells C4 through N4, Year label in O4, and How to use this template instructions in cell R4. | B4: PLANNED EXPENSES | C4: JAN | D4: FEB | E4: MAR | F4: APR | G4: MAY | H4: JUN | I4: JUL | J4: AUG | K4: SEPT | L4: OCT | M4: NOV | N4: DEC | O4: YEAR | R4: Tip: HOW TO USE THIS TEMPLATE Input data in the white cells on the PLANNED EXPENSES and ACTUAL EXPENSES worksheets, and the EXPENSE VARIANCES and EXPENSE ANALYSIS will be calculated for you. If you add a row on one sheet, the other sheets need to match.
A5: Enter Employee Costs in Employee Plan table starting in cell at right. Next instruction is in cell A10. | B5: Employee Costs | C5: Jan | D5: Feb | E5: Mar | F5: Apr | G5: May | H5: Jun | I5: Jul | J5: Aug | K5: Sep | L5: Oct | M5: Nov | N5: Dec | O5: YEAR
B6: Wages | C6: $85,000.00 | D6: $85,000.00 | E6: $85,000.00 | F6: $87,500.00 | G6: $87,500.00 | H6: $87,500.00 | I6: $87,500.00 | J6: $92,400.00 | K6: $92,400.00 | L6: $92,400.00 | M6: $92,400.00 | N6: $92,400.00 | O6: =SUM(C6:N6) -> $1,067,000.00
B7: Benefits | C7: =C6*0.27 -> $22,950.00 | D7: $22,950.00 | E7: $22,950.00 | F7: $23,625.00 | G7: $23,625.00 | H7: $23,625.00 | I7: $23,625.00 | J7: $24,948.00 | K7: $24,948.00 | L7: $24,948.00 | M7: $24,948.00 | N7: $24,948.00 | O7: =SUM(C7:N7) -> $288,090.00
B8: Subtotal | C8: =SUBTOTAL(109,EmployeePlan[Jan]) -> $107,950.00 | D8: =SUBTOTAL(109,EmployeePlan[Feb]) -> $107,950.00 | E8: =SUBTOTAL(109,EmployeePlan[Mar]) -> $107,950.00 | F8: =SUBTOTAL(109,EmployeePlan[Apr]) -> $111,125.00 | G8: =SUBTOTAL(109,EmployeePlan[May]) -> $111,125.00 | H8: =SUBTOTAL(109,EmployeePlan[Jun]) -> $111,125.00 | I8: =SUBTOTAL(109,EmployeePlan[Jul]) -> $111,125.00 | J8: =SUBTOTAL(109,EmployeePlan[Aug]) -> $117,348.00 | K8: =SUBTOTAL(109,EmployeePlan[Sep]) -> $117,348.00 | L8: =SUBTOTAL(109,EmployeePlan[Oct]) -> $117,348.00 | M8: =SUBTOTAL(109,EmployeePlan[Nov]) -> $117,348.00 | N8: =SUBTOTAL(109,EmployeePlan[Dec]) -> $117,348.00 | O8: =SUBTOTAL(109,EmployeePlan[YEAR]) -> $1,355,090.00
A10: Enter Office Costs in Office Plan table starting in cell at right. Next instruction is in cell A21. | B10: Office Costs | C10: Jan | D10: Feb | E10: Mar | F10: Apr | G10: May | H10: Jun | I10: Jul | J10: Aug | K10: Sep | L10: Oct | M10: Nov | N10: Dec | O10: YEAR
B11: Office lease | C11: $9,800.00 | D11: $9,800.00 | E11: $9,800.00 | F11: $9,800.00 | G11: $9,800.00 | H11: $9,800.00 | I11: $9,800.00 | J11: $9,800.00 | K11: $9,800.00 | L11: $9,800.00 | M11: $9,800.00 | N11: $9,800.00 | O11: =SUM(C11:N11) -> $117,600.00
B12: Gas | D12: $400.00 | E12: $400.00 | F12: $100.00 | G12: $100.00 | H12: $100.00 | I12: $100.00 | J12: $100.00 | K12: $100.00 | L12: $100.00 | M12: $400.00 | N12: $400.00 | O12: $2,300.00
B13: Electric | C13: $300.00 | D13: $300.00 | E13: $300.00 | F13: $300.00 | G13: $300.00 | H13: $300.00 | I13: $300.00 | J13: $300.00 | K13: $300.00 | L13: $300.00 | M13: $300.00 | N13: $300.00 | O13: $3,600.00
B14: Water | C14: $40.00 | D14: $40.00 | E14: $40.00 | F14: $40.00 | G14: $40.00 | H14: $40.00 | I14: $40.00 | J14: $40.00 | K14: $40.00 | L14: $40.00 | M14: $40.00 | N14: $40.00 | O14: $480.00
B15: Telephone | C15: $250.00 | D15: $250.00 | E15: $250.00 | F15: $250.00 | G15: $250.00 | H15: $250.00 | I15: $250.00 | J15: $250.00 | K15: $250.00 | L15: $250.00 | M15: $250.00 | N15: $250.00 | O15: $3,000.00
B16: Internet access | C16: $180.00 | D16: $180.00 | E16: $180.00 | F16: $180.00 | G16: $180.00 | H16: $180.00 | I16: $180.00 | J16: $180.00 | K16: $180.00 | L16: $180.00 | M16: $180.00 | N16: $180.00 | O16: $2,160.00
B17: Office supplies | C17: $200.00 | D17: $200.00 | E17: $200.00 | F17: $200.00 | G17: $200.00 | H17: $200.00 | I17: $200.00 | J17: $200.00 | K17: $200.00 | L17: $200.00 | M17: $200.00 | N17: $200.00 | O17: $2,400.00
B18: Security | C18: $600.00 | D18: $600.00 | E18: $600.00 | F18: $600.00 | G18: $600.00 | H18: $600.00 | I18: $600.00 | J18: $600.00 | K18: $600.00 | L18: $600.00 | M18: $600.00 | N18: $600.00 | O18: $7,200.00
B19: Subtotal | C19: =SUBTOTAL(109,OfficePlan[Jan]) -> $11,370.00 | D19: =SUBTOTAL(109,OfficePlan[Feb]) -> $11,770.00 | E19: =SUBTOTAL(109,OfficePlan[Mar]) -> $11,770.00 | F19: =SUBTOTAL(109,OfficePlan[Apr]) -> $11,470.00 | G19: =SUBTOTAL(109,OfficePlan[May]) -> $11,470.00 | H19: =SUBTOTAL(109,OfficePlan[Jun]) -> $11,470.00 | I19: =SUBTOTAL(109,OfficePlan[Jul]) -> $11,470.00 | J19: =SUBTOTAL(109,OfficePlan[Aug]) -> $11,470.00 | K19: =SUBTOTAL(109,OfficePlan[Sep]) -> $11,470.00 | L19: =SUBTOTAL(109,OfficePlan[Oct]) -> $11,470.00 | M19: =SUBTOTAL(109,OfficePlan[Nov]) -> $11,770.00 | N19: =SUBTOTAL(109,OfficePlan[Dec]) -> $11,770.00 | O19: =SUBTOTAL(109,OfficePlan[YEAR]) -> $138,740.00
A21: Enter Marketing Costs in Marketing Plan table starting in cell at right. Next instruction is in cell A30. | B21: Marketing Costs | C21: Jan | D21: Feb | E21: Mar | F21: Apr | G21: May | H21: Jun | I21: Jul | J21: Aug | K21: Sep | L21: Oct | M21: Nov | N21: Dec | O21: YEAR
B22: Web site hosting | C22: $500.00 | D22: $500.00 | E22: $500.00 | F22: $500.00 | G22: $500.00 | H22: $500.00 | I22: $500.00 | J22: $500.00 | K22: $500.00 | L22: $500.00 | M22: $500.00 | N22: $500.00 | O22: =SUM(C22:N22) -> $6,000.00
B23: Web site updates | C23: $200.00 | D23: $200.00 | E23: $200.00 | F23: $200.00 | G23: $200.00 | H23: $1,000.00 | I23: $200.00 | J23: $200.00 | K23: $200.00 | L23: $200.00 | M23: $200.00 | N23: $1,000.00 | O23: $4,000.00
B24: Collateral preparation | C24: $5,000.00 | D24: $0.00 | E24: $0.00 | F24: $5,000.00 | G24: $0.00 | H24: $0.00 | I24: $5,000.00 | J24: $0.00 | K24: $0.00 | L24: $5,000.00 | M24: $0.00 | N24: $0.00 | O24: $20,000.00
B25: Collateral printing | C25: $200.00 | D25: $200.00 | E25: $200.00 | F25: $200.00 | G25: $200.00 | H25: $200.00 | I25: $200.00 | J25: $200.00 | K25: $200.00 | L25: $200.00 | M25: $200.00 | N25: $200.00 | O25: $2,400.00
B26: Marketing events | C26: $2,000.00 | D26: $2,000.00 | E26: $2,000.00 | F26: $5,000.00 | G26: $2,000.00 | H26: $2,000.00 | I26: $2,000.00 | J26: $5,000.00 | K26: $2,000.00 | L26: $2,000.00 | M26: $2,000.00 | N26: $5,000.00 | O26: $33,000.00
B27: Miscellaneous expenses | C27: $200.00 | D27: $200.00 | E27: $200.00 | F27: $200.00 | G27: $200.00 | H27: $200.00 | I27: $200.00 | J27: $200.00 | K27: $200.00 | L27: $200.00 | M27: $200.00 | N27: $200.00 | O27: $2,400.00
B28: Subtotal | C28: =SUBTOTAL(109,MarketingPlan[Jan]) -> $8,100.00 | D28: =SUBTOTAL(109,MarketingPlan[Feb]) -> $3,100.00 | E28: =SUBTOTAL(109,MarketingPlan[Mar]) -> $3,100.00 | F28: =SUBTOTAL(109,MarketingPlan[Apr]) -> $11,100.00 | G28: =SUBTOTAL(109,MarketingPlan[May]) -> $3,100.00 | H28: =SUBTOTAL(109,MarketingPlan[Jun]) -> $3,900.00 | I28: =SUBTOTAL(109,MarketingPlan[Jul]) -> $8,100.00 | J28: =SUBTOTAL(109,MarketingPlan[Aug]) -> $6,100.00 | K28: =SUBTOTAL(109,MarketingPlan[Sep]) -> $3,100.00 | L28: =SUBTOTAL(109,MarketingPlan[Oct]) -> $8,100.00 | M28: =SUBTOTAL(109,MarketingPlan[Nov]) -> $3,100.00 | N28: =SUBTOTAL(109,MarketingPlan[Dec]) -> $6,900.00 | O28: =SUBTOTAL(109,MarketingPlan[YEAR]) -> $67,800.00
A30: Enter Training and Travel Costs in Training and Travel Plan table starting in cell at right. Next instruction is in cell A35. | B30: Training/Travel | C30: Jan | D30: Feb | E30: Mar | F30: Apr | G30: May | H30: Jun | I30: Jul | J30: Aug | K30: Sep | L30: Oct | M30: Nov | N30: Dec | O30: YEAR
B31: Training classes | C31: $2,000.00 | D31: $2,000.00 | E31: $2,000.00 | F31: $2,000.00 | G31: $2,000.00 | H31: $2,000.00 | I31: $2,000.00 | J31: $2,000.00 | K31: $2,000.00 | L31: $2,000.00 | M31: $2,000.00 | N31: $2,000.00 | O31: =SUM(C31:N31) -> $24,000.00
B32: Training-related travel costs | C32: $2,000.00 | D32: $2,000.00 | E32: $2,000.00 | F32: $2,000.00 | G32: $2,000.00 | H32: $2,000.00 | I32: $2,000.00 | J32: $2,000.00 | K32: $2,000.00 | L32: $2,000.00 | M32: $2,000.00 | N32: $2,000.00 | O32: =SUM(C32:N32) -> $24,000.00
B33: Subtotal | C33: =SUBTOTAL(109,TrainingAndTravelPlan[Jan]) -> $4,000.00 | D33: =SUBTOTAL(109,TrainingAndTravelPlan[Feb]) -> $4,000.00 | E33: =SUBTOTAL(109,TrainingAndTravelPlan[Mar]) -> $4,000.00 | F33: =SUBTOTAL(109,TrainingAndTravelPlan[Apr]) -> $4,000.00 | G33: =SUBTOTAL(109,TrainingAndTravelPlan[May]) -> $4,000.00 | H33: =SUBTOTAL(109,TrainingAndTravelPlan[Jun]) -> $4,000.00 | I33: =SUBTOTAL(109,TrainingAndTravelPlan[Jul]) -> $4,000.00 | J33: =SUBTOTAL(109,TrainingAndTravelPlan[Aug]) -> $4,000.00 | K33: =SUBTOTAL(109,TrainingAndTravelPlan[Sep]) -> $4,000.00 | L33: =SUBTOTAL(109,TrainingAndTravelPlan[Oct]) -> $4,000.00 | M33: =SUBTOTAL(109,TrainingAndTravelPlan[Nov]) -> $4,000.00 | N33: =SUBTOTAL(109,TrainingAndTravelPlan[Dec]) -> $4,000.00 | O33: =SUBTOTAL(109,TrainingAndTravelPlan[YEAR]) -> $48,000.00
A35: Totals are auto calculated in Planned Total table starting in cell at right. | B35: TOTALS | C35: Jan | D35: Feb | E35: Mar | F35: Apr | G35: May | H35: Jun | I35: Jul | J35: Aug | K35: Sep | L35: Oct | M35: Nov | N35: Dec | O35: Year
B36: Monthly Planned Expenses | C36: =TrainingAndTravelPlan[[#Totals],[Jan]]+MarketingPlan[[#Totals],[Jan]]+OfficePlan[[#Totals],[Jan]]+EmployeePlan[[#Totals],[Jan]] -> $131,420.00 | D36: =TrainingAndTravelPlan[[#Totals],[Feb]]+MarketingPlan[[#Totals],[Feb]]+OfficePlan[[#Totals],[Feb]]+EmployeePlan[[#Totals],[Feb]] -> $126,820.00 | E36: =TrainingAndTravelPlan[[#Totals],[Mar]]+MarketingPlan[[#Totals],[Mar]]+OfficePlan[[#Totals],[Mar]]+EmployeePlan[[#Totals],[Mar]] -> $126,820.00 | F36: =TrainingAndTravelPlan[[#Totals],[Apr]]+MarketingPlan[[#Totals],[Apr]]+OfficePlan[[#Totals],[Apr]]+EmployeePlan[[#Totals],[Apr]] -> $137,695.00 | G36: =TrainingAndTravelPlan[[#Totals],[May]]+MarketingPlan[[#Totals],[May]]+OfficePlan[[#Totals],[May]]+EmployeePlan[[#Totals],[May]] -> $129,695.00 | H36: =TrainingAndTravelPlan[[#Totals],[Jun]]+MarketingPlan[[#Totals],[Jun]]+OfficePlan[[#Totals],[Jun]]+EmployeePlan[[#Totals],[Jun]] -> $130,495.00 | I36: =TrainingAndTravelPlan[[#Totals],[Jul]]+MarketingPlan[[#Totals],[Jul]]+OfficePlan[[#Totals],[Jul]]+EmployeePlan[[#Totals],[Jul]] -> $134,695.00 | J36: =TrainingAndTravelPlan[[#Totals],[Aug]]+MarketingPlan[[#Totals],[Aug]]+OfficePlan[[#Totals],[Aug]]+EmployeePlan[[#Totals],[Aug]] -> $138,918.00 | K36: =TrainingAndTravelPlan[[#Totals],[Sep]]+MarketingPlan[[#Totals],[Sep]]+OfficePlan[[#Totals],[Sep]]+EmployeePlan[[#Totals],[Sep]] -> $135,918.00 | L36: =TrainingAndTravelPlan[[#Totals],[Oct]]+MarketingPlan[[#Totals],[Oct]]+OfficePlan[[#Totals],[Oct]]+EmployeePlan[[#Totals],[Oct]] -> $140,918.00 | M36: =TrainingAndTravelPlan[[#Totals],[Nov]]+MarketingPlan[[#Totals],[Nov]]+OfficePlan[[#Totals],[Nov]]+EmployeePlan[[#Totals],[Nov]] -> $136,218.00 | N36: =TrainingAndTravelPlan[[#Totals],[Dec]]+MarketingPlan[[#Totals],[Dec]]+OfficePlan[[#Totals],[Dec]]+EmployeePlan[[#Totals],[Dec]] -> $140,018.00 | O36: =TrainingAndTravelPlan[[#Totals],[YEAR]]+MarketingPlan[[#Totals],[YEAR]]+OfficePlan[[#Totals],[YEAR]]+EmployeePlan[[#Totals],[YEAR]] -> $1,609,630.00
B37: TOTAL Planned Expenses | C37: =SUM($C$36:C36) -> $131,420.00 | D37: =SUM($C$36:D36) -> $258,240.00 | E37: =SUM($C$36:E36) -> $385,060.00 | F37: =SUM($C$36:F36) -> $522,755.00 | G37: =SUM($C$36:G36) -> $652,450.00 | H37: =SUM($C$36:H36) -> $782,945.00 | I37: =SUM($C$36:I36) -> $917,640.00 | J37: =SUM($C$36:J36) -> $1,056,558.00 | K37: =SUM($C$36:K36) -> $1,192,476.00 | L37: =SUM($C$36:L36) -> $1,333,394.00 | M37: =SUM($C$36:M36) -> $1,469,612.00 | N37: =SUM($C$36:N36) -> $1,609,630.00

Sheet ACTUAL EXPENSES
A1: Enter Actual Employee Costs, Office Costs, Marketing Costs, and Training or Travel Cost in respective tables in this worksheet. Totals are auto calculated. Helpful instructions on how to use this worksheet are in cells in this column. Arrow down to get started.
A2: Company Name is auto updated in cell at right. Title of this worksheet is in cell K2. Enter Logo in cell N2. | B2: ='PLANNED EXPENSES'!B2:D3 -> Company Name | K2: =worksheet_title -> Detailed Expense Estimates | N2: Logo placeholder is in this cell.
A3: Tip is in cell K3. | K3: Shaded cells are calculations.
A4: Actual Expenses label is in cell at right, months in cells C4 through N4, and Year label in O4. | B4: ACTUAL EXPENSES | C4: JAN | D4: FEB | E4: MAR | F4: APR | G4: MAY | H4: JUN | I4: JUL | J4: AUG | K4: SEPT | L4: OCT | M4: NOV | N4: DEC | O4: YEAR
A5: Enter Employee Costs in Employee Actual table starting in cell at right. Next instruction is in cell A10. | B5: Employee Costs | C5: Jan | D5: Feb | E5: Mar | F5: Apr | G5: May | H5: Jun | I5: Jul | J5: Aug | K5: Sep | L5: Oct | M5: Nov | N5: Dec | O5: YEAR
B6: Wages | C6: $85,000.00 | D6: $85,000.00 | E6: $85,000.00 | F6: $88,000.00 | G6: $88,000.00 | H6: $88,000.00 | O6: =SUM(C6:N6) -> $519,000.00
B7: Benefits | C7: =C6*0.27 -> $22,950.00 | D7: $22,950.00 | E7: $22,950.00 | F7: $23,760.00 | G7: $23,760.00 | H7: $23,760.00 | I7: $0.00 | J7: $0.00 | K7: $0.00 | L7: $0.00 | M7: $0.00 | N7: $0.00 | O7: =SUM(C7:N7) -> $140,130.00
B8: Subtotal | C8: =SUBTOTAL(109,EmployeeActual[Jan]) -> $107,950.00 | D8: =SUBTOTAL(109,EmployeeActual[Feb]) -> $107,950.00 | E8: =SUBTOTAL(109,EmployeeActual[Mar]) -> $107,950.00 | F8: =SUBTOTAL(109,EmployeeActual[Apr]) -> $111,760.00 | G8: =SUBTOTAL(109,EmployeeActual[May]) -> $111,760.00 | H8: =SUBTOTAL(109,EmployeeActual[Jun]) -> $111,760.00 | I8: =SUBTOTAL(109,EmployeeActual[Jul]) -> $0.00 | J8: =SUBTOTAL(109,EmployeeActual[Aug]) -> $0.00 | K8: =SUBTOTAL(109,EmployeeActual[Sep]) -> $0.00 | L8: =SUBTOTAL(109,EmployeeActual[Oct]) -> $0.00 | M8: =SUBTOTAL(109,EmployeeActual[Nov]) -> $0.00 | N8: =SUBTOTAL(109,EmployeeActual[Dec]) -> $0.00 | O8: =SUBTOTAL(109,EmployeeActual[YEAR]) -> $659,130.00
A10: Enter Office Costs in Office Actual table starting in cell at right. Next instruction is in cell A21. | B10: Office Costs | C10: Jan | D10: Feb | E10: Mar | F10: Apr | G10: May | H10: Jun | I10: Jul | J10: Aug | K10: Sep | L10: Oct | M10: Nov | N10: Dec | O10: YEAR
B11: Office lease | C11: $9,800.00 | D11: $9,800.00 | E11: $9,800.00 | F11: $9,800.00 | G11: $9,800.00 | H11: $9,800.00 | O11: =SUM(C11:N11) -> $58,800.00
B12: Gas | C12: $4.00 | D12: $430.00 | E12: $385.00 | F12: $230.00 | G12: $87.00 | H12: $88.00 | O12: $1,224.00
B13: Electric | C13: $288.00 | D13: $278.00 | E13: $268.00 | F13: $299.00 | G13: $306.00 | H13: $290.00 | O13: $1,729.00
B14: Water | C14: $35.00 | D14: $33.00 | E14: $34.00 | F14: $36.00 | G14: $34.00 | H14: $36.00 | O14: $208.00
B15: Telephone | C15: $224.00 | D15: $235.00 | E15: $265.00 | F15: $245.00 | G15: $245.00 | H15: $220.00 | O15: $1,434.00
B16: Internet access | C16: $180.00 | D16: $180.00 | E16: $180.00 | F16: $180.00 | G16: $180.00 | H16: $180.00 | O16: $1,080.00
B17: Office supplies | C17: $256.00 | D17: $142.00 | E17: $160.00 | F17: $221.00 | G17: $256.00 | H17: $240.00 | O17: $1,275.00
B18: Security | C18: $600.00 | D18: $600.00 | E18: $600.00 | F18: $600.00 | G18: $600.00 | H18: $600.00 | O18: $3,600.00
B19: Subtotal | C19: =SUBTOTAL(109,OfficeActual[Jan]) -> $11,387.00 | D19: =SUBTOTAL(109,OfficeActual[Feb]) -> $11,698.00 | E19: =SUBTOTAL(109,OfficeActual[Mar]) -> $11,692.00 | F19: =SUBTOTAL(109,OfficeActual[Apr]) -> $11,611.00 | G19: =SUBTOTAL(109,OfficeActual[May]) -> $11,508.00 | H19: =SUBTOTAL(109,OfficeActual[Jun]) -> $11,454.00 | I19: =SUBTOTAL(109,OfficeActual[Jul]) -> $0.00 | J19: =SUBTOTAL(109,OfficeActual[Aug]) -> $0.00 | K19: =SUBTOTAL(109,OfficeActual[Sep]) -> $0.00 | L19: =SUBTOTAL(109,OfficeActual[Oct]) -> $0.00 | M19: =SUBTOTAL(109,OfficeActual[Nov]) -> $0.00 | N19: =SUBTOTAL(109,OfficeActual[Dec]) -> $0.00 | O19: =SUBTOTAL(109,OfficeActual[YEAR]) -> $69,350.00
A21: Enter Marketing Costs in Marketing Actual table starting in cell at right. Next instruction is in cell A30. | B21: Marketing Costs | C21: Jan | D21: Feb | E21: Mar | F21: Apr | G21: May | H21: Jun | I21: Jul | J21: Aug | K21: Sep | L21: Oct | M21: Nov | N21: Dec | O21: YEAR
B22: Web site hosting | C22: $500.00 | D22: $500.00 | E22: $500.00 | F22: $500.00 | G22: $500.00 | H22: $500.00 | O22: =SUM(C22:N22) -> $3,000.00
B23: Web site updates | C23: $200.00 | D23: $200.00 | E23: $200.00 | F23: $200.00 | G23: $200.00 | H23: $1,500.00 | O23: $2,500.00
B24: Collateral preparation | C24: $4,800.00 | D24: $0.00 | E24: $0.00 | F24: $5,500.00 | G24: $0.00 | H24: $0.00 | O24: $10,300.00
B25: Collateral printing | C25: $100.00 | D25: $500.00 | E25: $100.00 | F25: $100.00 | G25: $600.00 | H25: $180.00 | O25: $1,580.00
B26: Marketing events | C26: $1,800.00 | D26: $2,200.00 | E26: $2,200.00 | F26: $4,700.00 | G26: $1,500.00 | H26: $2,300.00 | O26: $14,700.00
B27: Miscellaneous expenses | C27: $145.00 | D27: $156.00 | E27: $123.00 | F27: $223.00 | G27: $187.00 | H27: $245.00 | O27: $1,079.00
B28: Subtotal | C28: =SUBTOTAL(109,MarketingActual[Jan]) -> $7,545.00 | D28: =SUBTOTAL(109,MarketingActual[Feb]) -> $3,556.00 | E28: =SUBTOTAL(109,MarketingActual[Mar]) -> $3,123.00 | F28: =SUBTOTAL(109,MarketingActual[Apr]) -> $11,223.00 | G28: =SUBTOTAL(109,MarketingActual[May]) -> $2,987.00 | H28: =SUBTOTAL(109,MarketingActual[Jun]) -> $4,725.00 | I28: =SUBTOTAL(109,MarketingActual[Jul]) -> $0.00 | J28: =SUBTOTAL(109,MarketingActual[Aug]) -> $0.00 | K28: =SUBTOTAL(109,MarketingActual[Sep]) -> $0.00 | L28: =SUBTOTAL(109,MarketingActual[Oct]) -> $0.00 | M28: =SUBTOTAL(109,MarketingActual[Nov]) -> $0.00 | N28: =SUBTOTAL(109,MarketingActual[Dec]) -> $0.00 | O28: =SUBTOTAL(109,MarketingActual[YEAR]) -> $33,159.00
A30: Enter Training or Travel Costs in Training and Travel Actual table starting in cell at right. Next instruction is in cell A35. | B30: Training/Travel | C30: Jan | D30: Feb | E30: Mar | F30: Apr | G30: May | H30: Jun | I30: Jul | J30: Aug | K30: Sep | L30: Oct | M30: Nov | N30: Dec | O30: YEAR
B31: Training classes | C31: $1,600.00 | D31: $2,400.00 | E31: $1,400.00 | F31: $1,600.00 | G31: $1,200.00 | H31: $2,800.00 | O31: =SUM(C31:N31) -> $11,000.00
B32: Training-related travel costs | C32: $1,200.00 | D32: $2,200.00 | E32: $1,400.00 | F32: $1,200.00 | G32: $800.00 | H32: $3,500.00 | O32: =SUM(C32:N32) -> $10,300.00
B33: Subtotal | C33: =SUBTOTAL(109,TrainingAndTravelActual[Jan]) -> $2,800.00 | D33: =SUBTOTAL(109,TrainingAndTravelActual[Feb]) -> $4,600.00 | E33: =SUBTOTAL(109,TrainingAndTravelActual[Mar]) -> $2,800.00 | F33: =SUBTOTAL(109,TrainingAndTravelActual[Apr]) -> $2,800.00 | G33: =SUBTOTAL(109,TrainingAndTravelActual[May]) -> $2,000.00 | H33: =SUBTOTAL(109,TrainingAndTravelActual[Jun]) -> $6,300.00 | I33: =SUBTOTAL(109,TrainingAndTravelActual[Jul]) -> $0.00 | J33: =SUBTOTAL(109,TrainingAndTravelActual[Aug]) -> $0.00 | K33: =SUBTOTAL(109,TrainingAndTravelActual[Sep]) -> $0.00 | L33: =SUBTOTAL(109,TrainingAndTravelActual[Oct]) -> $0.00 | M33: =SUBTOTAL(109,TrainingAndTravelActual[Nov]) -> $0.00 | N33: =SUBTOTAL(109,TrainingAndTravelActual[Dec]) -> $0.00 | O33: =SUBTOTAL(109,TrainingAndTravelActual[YEAR]) -> $21,300.00
A35: Total Actual Expenses are auto calculated in Total Actual table starting in cell at right. | B35: TOTAL Planned Expenses | C35: Jan | D35: Feb | E35: Mar | F35: Apr | G35: May | H35: Jun | I35: Jul | J35: Aug | K35: Sep | L35: Oct | M35: Nov | N35: Dec | O35: Year
B36: Monthly Actual Expenses | C36: =TrainingAndTravelActual[[#Totals],[Jan]]+MarketingActual[[#Totals],[Jan]]+OfficeActual[[#Totals],[Jan]]+EmployeeActual[[#Totals],[Jan]] -> $129,682.00 | D36: =TrainingAndTravelActual[[#Totals],[Feb]]+MarketingActual[[#Totals],[Feb]]+OfficeActual[[#Totals],[Feb]]+EmployeeActual[[#Totals],[Feb]] -> $127,804.00 | E36: =TrainingAndTravelActual[[#Totals],[Mar]]+MarketingActual[[#Totals],[Mar]]+OfficeActual[[#Totals],[Mar]]+EmployeeActual[[#Totals],[Mar]] -> $125,565.00 | F36: =TrainingAndTravelActual[[#Totals],[Apr]]+MarketingActual[[#Totals],[Apr]]+OfficeActual[[#Totals],[Apr]]+EmployeeActual[[#Totals],[Apr]] -> $137,394.00 | G36: =TrainingAndTravelActual[[#Totals],[May]]+MarketingActual[[#Totals],[May]]+OfficeActual[[#Totals],[May]]+EmployeeActual[[#Totals],[May]] -> $128,255.00 | H36: =TrainingAndTravelActual[[#Totals],[Jun]]+MarketingActual[[#Totals],[Jun]]+OfficeActual[[#Totals],[Jun]]+EmployeeActual[[#Totals],[Jun]] -> $134,239.00 | I36: =TrainingAndTravelActual[[#Totals],[Jul]]+MarketingActual[[#Totals],[Jul]]+OfficeActual[[#Totals],[Jul]]+EmployeeActual[[#Totals],[Jul]] -> $0.00 | J36: =TrainingAndTravelActual[[#Totals],[Aug]]+MarketingActual[[#Totals],[Aug]]+OfficeActual[[#Totals],[Aug]]+EmployeeActual[[#Totals],[Aug]] -> $0.00 | K36: =TrainingAndTravelActual[[#Totals],[Sep]]+MarketingActual[[#Totals],[Sep]]+OfficeActual[[#Totals],[Sep]]+EmployeeActual[[#Totals],[Sep]] -> $0.00 | L36: =TrainingAndTravelActual[[#Totals],[Oct]]+MarketingActual[[#Totals],[Oct]]+OfficeActual[[#Totals],[Oct]]+EmployeeActual[[#Totals],[Oct]] -> $0.00 | M36: =TrainingAndTravelActual[[#Totals],[Nov]]+MarketingActual[[#Totals],[Nov]]+OfficeActual[[#Totals],[Nov]]+EmployeeActual[[#Totals],[Nov]] -> $0.00 | N36: =TrainingAndTravelActual[[#Totals],[Dec]]+MarketingActual[[#Totals],[Dec]]+OfficeActual[[#Totals],[Dec]]+EmployeeActual[[#Totals],[Dec]] -> $0.00 | O36: =TrainingAndTravelActual[[#Totals],[YEAR]]+MarketingActual[[#Totals],[YEAR]]+OfficeActual[[#Totals],[YEAR]]+EmployeeActual[[#Totals],[YEAR]] -> $782,939.00
B37: TOTAL Actual Expenses | C37: =SUM($C$36:C36) -> $129,682.00 | D37: =SUM($C$36:D36) -> $257,486.00 | E37: =SUM($C$36:E36) -> $383,051.00 | F37: =SUM($C$36:F36) -> $520,445.00 | G37: =SUM($C$36:G36) -> $648,700.00 | H37: =SUM($C$36:H36) -> $782,939.00 | I37: =SUM($C$36:I36) -> $782,939.00 | J37: =SUM($C$36:J36) -> $782,939.00 | K37: =SUM($C$36:K36) -> $782,939.00 | L37: =SUM($C$36:L36) -> $782,939.00 | M37: =SUM($C$36:M36) -> $782,939.00 | N37: =SUM($C$36:N36) -> $782,939.00

Sheet EXPENSE VARIANCES
A1: Expense Variance are auto calculated in this worksheet for Employee Costs, Office Costs, Marketing Costs, and Training or Travel Cost in respective tables in this worksheet. Helpful instructions on how to use this worksheet are in cells in this column. Arrow down to get started.
A2: Company Name is auto updated in cell at right. Title of this worksheet is in cell K2. Enter Logo in cell N2. | B2: ='PLANNED EXPENSES'!B2:D3 -> Company Name | K2: =worksheet_title -> Detailed Expense Estimates | N2: Logo placeholder is in this cell.
A3: Tip is in cell K3. | K3: Shaded cells are calculations.
A4: Expense Variances label is in cell at right, months in cells C4 through N4, and Year label in O4. | B4: EXPENSE VARIANCES | C4: JAN | D4: FEB | E4: MAR | F4: APR | G4: MAY | H4: JUN | I4: JUL | J4: AUG | K4: SEPT | L4: OCT | M4: NOV | N4: DEC | O4: YEAR
A5: Variance in Employee Costs is auto calculated in Employee Variances table starting in cell at right. Next instruction is in cell A10. | B5: Employee Costs | C5: Jan | D5: Feb | E5: Mar | F5: Apr | G5: May | H5: Jun | I5: Jul | J5: Aug | K5: Sep | L5: Oct | M5: Nov | N5: Dec | O5: YEAR
B6: Wages | C6: =INDEX(EmployeePlan[],MATCH(INDEX(EmployeeVariances[],ROW()-ROW(EmployeeVariances[[#Headers],[Jan]]),1),INDEX(EmployeePlan[],,1),0),MATCH(EmployeeVariances[[#Headers],[Jan]],EmployeePlan[#Headers],0))-INDEX(EmployeeActual[],MATCH(INDEX(EmployeeVariances[],ROW()-ROW(EmployeeVariances[[#Headers],[Jan]]),1),INDEX(EmployeePlan[],,1),0),MATCH(EmployeeVariances[[#Headers],[Jan]],EmployeeActual[#Headers],0)) -> $0.00 | D6: =INDEX(EmployeePlan[],MATCH(INDEX(EmployeeVariances[],ROW()-ROW(EmployeeVariances[[#Headers],[Feb]]),1),INDEX(EmployeePlan[],,1),0),MATCH(EmployeeVariances[[#Headers],[Feb]],EmployeePlan[#Headers],0))-INDEX(EmployeeActual[],MATCH(INDEX(EmployeeVariances[],ROW()-ROW(EmployeeVariances[[#Headers],[Feb]]),1),INDEX(EmployeePlan[],,1),0),MATCH(EmployeeVariances[[#Headers],[Feb]],EmployeeActual[#Headers],0)) -> $0.00 | E6: =INDEX(EmployeePlan[],MATCH(INDEX(EmployeeVariances[],ROW()-ROW(EmployeeVariances[[#Headers],[Mar]]),1),INDEX(EmployeePlan[],,1),0),MATCH(EmployeeVariances[[#Headers],[Mar]],EmployeePlan[#Headers],0))-INDEX(EmployeeActual[],MATCH(INDEX(EmployeeVariances[],ROW()-ROW(EmployeeVariances[[#Headers],[Mar]]),1),INDEX(EmployeePlan[],,1),0),MATCH(EmployeeVariances[[#Headers],[Mar]],EmployeeActual[#Headers],0)) -> $0.00 | F6: =INDEX(EmployeePlan[],MATCH(INDEX(EmployeeVariances[],ROW()-ROW(EmployeeVariances[[#Headers],[Apr]]),1),INDEX(EmployeePlan[],,1),0),MATCH(EmployeeVariances[[#Headers],[Apr]],EmployeePlan[#Headers],0))-INDEX(EmployeeActual[],MATCH(INDEX(EmployeeVariances[],ROW()-ROW(EmployeeVariances[[#Headers],[Apr]]),1),INDEX(EmployeePlan[],,1),0),MATCH(EmployeeVariances[[#Headers],[Apr]],EmployeeActual[#Headers],0)) -> ($500.00) | G6: =INDEX(EmployeePlan[],MATCH(INDEX(EmployeeVariances[],ROW()-ROW(EmployeeVariances[[#Headers],[May]]),1),INDEX(EmployeePlan[],,1),0),MATCH(EmployeeVariances[[#Headers],[May]],EmployeePlan[#Headers],0))-INDEX(EmployeeActual[],MATCH(INDEX(EmployeeVariances[],ROW()-ROW(EmployeeVariances[[#Headers],[May]]),1),INDEX(EmployeePlan[],,1),0),MATCH(EmployeeVariances[[#Headers],[May]],EmployeeActual[#Headers],0)) -> ($500.00) | H6: =INDEX(EmployeePlan[],MATCH(INDEX(EmployeeVariances[],ROW()-ROW(EmployeeVariances[[#Headers],[Jun]]),1),INDEX(EmployeePlan[],,1),0),MATCH(EmployeeVariances[[#Headers],[Jun]],EmployeePlan[#Headers],0))-INDEX(EmployeeActual[],MATCH(INDEX(EmployeeVariances[],ROW()-ROW(EmployeeVariances[[#Headers],[Jun]]),1),INDEX(EmployeePlan[],,1),0),MATCH(EmployeeVariances[[#Headers],[Jun]],EmployeeActual[#Headers],0)) -> ($500.00) | I6: =INDEX(EmployeePlan[],MATCH(INDEX(EmployeeVariances[],ROW()-ROW(EmployeeVariances[[#Headers],[Jul]]),1),INDEX(EmployeePlan[],,1),0),MATCH(EmployeeVariances[[#Headers],[Jul]],EmployeePlan[#Headers],0))-INDEX(EmployeeActual[],MATCH(INDEX(EmployeeVariances[],ROW()-ROW(EmployeeVariances[[#Headers],[Jul]]),1),INDEX(EmployeePlan[],,1),0),MATCH(EmployeeVariances[[#Headers],[Jul]],EmployeeActual[#Headers],0)) -> $87,500.00 | J6: =INDEX(EmployeePlan[],MATCH(INDEX(EmployeeVariances[],ROW()-ROW(EmployeeVariances[[#Headers],[Aug]]),1),INDEX(EmployeePlan[],,1),0),MATCH(EmployeeVariances[[#Headers],[Aug]],EmployeePlan[#Headers],0))-INDEX(EmployeeActual[],MATCH(INDEX(EmployeeVariances[],ROW()-ROW(EmployeeVariances[[#Headers],[Aug]]),1),INDEX(EmployeePlan[],,1),0),MATCH(EmployeeVariances[[#Headers],[Aug]],EmployeeActual[#Headers],0)) -> $92,400.00 | K6: =INDEX(EmployeePlan[],MATCH(INDEX(EmployeeVariances[],ROW()-ROW(EmployeeVariances[[#Headers],[Sep]]),1),INDEX(EmployeePlan[],,1),0),MATCH(EmployeeVariances[[#Headers],[Sep]],EmployeePlan[#Headers],0))-INDEX(EmployeeActual[],MATCH(INDEX(EmployeeVariances[],ROW()-ROW(EmployeeVariances[[#Headers],[Sep]]),1),INDEX(EmployeePlan[],,1),0),MATCH(EmployeeVariances[[#Headers],[Sep]],EmployeeActual[#Headers],0)) -> $92,400.00 | L6: =INDEX(EmployeePlan[],MATCH(INDEX(EmployeeVariances[],ROW()-ROW(EmployeeVariances[[#Headers],[Oct]]),1),INDEX(EmployeePlan[],,1),0),MATCH(EmployeeVariances[[#Headers],[Oct]],EmployeePlan[#Headers],0))-INDEX(EmployeeActual[],MATCH(INDEX(EmployeeVariances[],ROW()-ROW(EmployeeVariances[[#Headers],[Oct]]),1),INDEX(EmployeePlan[],,1),0),MATCH(EmployeeVariances[[#Headers],[Oct]],EmployeeActual[#Headers],0)) -> $92,400.00 | M6: =INDEX(EmployeePlan[],MATCH(INDEX(EmployeeVariances[],ROW()-ROW(EmployeeVariances[[#Headers],[Nov]]),1),INDEX(EmployeePlan[],,1),0),MATCH(EmployeeVariances[[#Headers],[Nov]],EmployeePlan[#Headers],0))-INDEX(EmployeeActual[],MATCH(INDEX(EmployeeVariances[],ROW()-ROW(EmployeeVariances[[#Headers],[Nov]]),1),INDEX(EmployeePlan[],,1),0),MATCH(EmployeeVariances[[#Headers],[Nov]],EmployeeActual[#Headers],0)) -> $92,400.00 | N6: =INDEX(EmployeePlan[],MATCH(INDEX(EmployeeVariances[],ROW()-ROW(EmployeeVariances[[#Headers],[Dec]]),1),INDEX(EmployeePlan[],,1),0),MATCH(EmployeeVariances[[#Headers],[Dec]],EmployeePlan[#Headers],0))-INDEX(EmployeeActual[],MATCH(INDEX(EmployeeVariances[],ROW()-ROW(EmployeeVariances[[#Headers],[Dec]]),1),INDEX(EmployeePlan[],,1),0),MATCH(EmployeeVariances[[#Headers],[Dec]],EmployeeActual[#Headers],0)) -> $92,400.00 | O6: =SUM(EmployeeVariances[[#This Row],[Jan]:[Dec]]) -> $548,000.00
B7: Benefits | C7: =INDEX(EmployeePlan[],MATCH(INDEX(EmployeeVariances[],ROW()-ROW(EmployeeVariances[[#Headers],[Jan]]),1),INDEX(EmployeePlan[],,1),0),MATCH(EmployeeVariances[[#Headers],[Jan]],EmployeePlan[#Headers],0))-INDEX(EmployeeActual[],MATCH(INDEX(EmployeeVariances[],ROW()-ROW(EmployeeVariances[[#Headers],[Jan]]),1),INDEX(EmployeePlan[],,1),0),MATCH(EmployeeVariances[[#Headers],[Jan]],EmployeeActual[#Headers],0)) -> $0.00 | D7: =INDEX(EmployeePlan[],MATCH(INDEX(EmployeeVariances[],ROW()-ROW(EmployeeVariances[[#Headers],[Feb]]),1),INDEX(EmployeePlan[],,1),0),MATCH(EmployeeVariances[[#Headers],[Feb]],EmployeePlan[#Headers],0))-INDEX(EmployeeActual[],MATCH(INDEX(EmployeeVariances[],ROW()-ROW(EmployeeVariances[[#Headers],[Feb]]),1),INDEX(EmployeePlan[],,1),0),MATCH(EmployeeVariances[[#Headers],[Feb]],EmployeeActual[#Headers],0)) -> $0.00 | E7: =INDEX(EmployeePlan[],MATCH(INDEX(EmployeeVariances[],ROW()-ROW(EmployeeVariances[[#Headers],[Mar]]),1),INDEX(EmployeePlan[],,1),0),MATCH(EmployeeVariances[[#Headers],[Mar]],EmployeePlan[#Headers],0))-INDEX(EmployeeActual[],MATCH(INDEX(EmployeeVariances[],ROW()-ROW(EmployeeVariances[[#Headers],[Mar]]),1),INDEX(EmployeePlan[],,1),0),MATCH(EmployeeVariances[[#Headers],[Mar]],EmployeeActual[#Headers],0)) -> $0.00 | F7: =INDEX(EmployeePlan[],MATCH(INDEX(EmployeeVariances[],ROW()-ROW(EmployeeVariances[[#Headers],[Apr]]),1),INDEX(EmployeePlan[],,1),0),MATCH(EmployeeVariances[[#Headers],[Apr]],EmployeePlan[#Headers],0))-INDEX(EmployeeActual[],MATCH(INDEX(EmployeeVariances[],ROW()-ROW(EmployeeVariances[[#Headers],[Apr]]),1),INDEX(EmployeePlan[],,1),0),MATCH(EmployeeVariances[[#Headers],[Apr]],EmployeeActual[#Headers],0)) -> ($135.00) | G7: =INDEX(EmployeePlan[],MATCH(INDEX(EmployeeVariances[],ROW()-ROW(EmployeeVariances[[#Headers],[May]]),1),INDEX(EmployeePlan[],,1),0),MATCH(EmployeeVariances[[#Headers],[May]],EmployeePlan[#Headers],0))-INDEX(EmployeeActual[],MATCH(INDEX(EmployeeVariances[],ROW()-ROW(EmployeeVariances[[#Headers],[May]]),1),INDEX(EmployeePlan[],,1),0),MATCH(EmployeeVariances[[#Headers],[May]],EmployeeActual[#Headers],0)) -> ($135.00) | H7: =INDEX(EmployeePlan[],MATCH(INDEX(EmployeeVariances[],ROW()-ROW(EmployeeVariances[[#Headers],[Jun]]),1),INDEX(EmployeePlan[],,1),0),MATCH(EmployeeVariances[[#Headers],[Jun]],EmployeePlan[#Headers],0))-INDEX(EmployeeActual[],MATCH(INDEX(EmployeeVariances[],ROW()-ROW(EmployeeVariances[[#Headers],[Jun]]),1),INDEX(EmployeePlan[],,1),0),MATCH(EmployeeVariances[[#Headers],[Jun]],EmployeeActual[#Headers],0)) -> ($135.00) | I7: =INDEX(EmployeePlan[],MATCH(INDEX(EmployeeVariances[],ROW()-ROW(EmployeeVariances[[#Headers],[Jul]]),1),INDEX(EmployeePlan[],,1),0),MATCH(EmployeeVariances[[#Headers],[Jul]],EmployeePlan[#Headers],0))-INDEX(EmployeeActual[],MATCH(INDEX(EmployeeVariances[],ROW()-ROW(EmployeeVariances[[#Headers],[Jul]]),1),INDEX(EmployeePlan[],,1),0),MATCH(EmployeeVariances[[#Headers],[Jul]],EmployeeActual[#Headers],0)) -> $23,625.00 | J7: =INDEX(EmployeePlan[],MATCH(INDEX(EmployeeVariances[],ROW()-ROW(EmployeeVariances[[#Headers],[Aug]]),1),INDEX(EmployeePlan[],,1),0),MATCH(EmployeeVariances[[#Headers],[Aug]],EmployeePlan[#Headers],0))-INDEX(EmployeeActual[],MATCH(INDEX(EmployeeVariances[],ROW()-ROW(EmployeeVariances[[#Headers],[Aug]]),1),INDEX(EmployeePlan[],,1),0),MATCH(EmployeeVariances[[#Headers],[Aug]],EmployeeActual[#Headers],0)) -> $24,948.00 | K7: =INDEX(EmployeePlan[],MATCH(INDEX(EmployeeVariances[],ROW()-ROW(EmployeeVariances[[#Headers],[Sep]]),1),INDEX(EmployeePlan[],,1),0),MATCH(EmployeeVariances[[#Headers],[Sep]],EmployeePlan[#Headers],0))-INDEX(EmployeeActual[],MATCH(INDEX(EmployeeVariances[],ROW()-ROW(EmployeeVariances[[#Headers],[Sep]]),1),INDEX(EmployeePlan[],,1),0),MATCH(EmployeeVariances[[#Headers],[Sep]],EmployeeActual[#Headers],0)) -> $24,948.00 | L7: =INDEX(EmployeePlan[],MATCH(INDEX(EmployeeVariances[],ROW()-ROW(EmployeeVariances[[#Headers],[Oct]]),1),INDEX(EmployeePlan[],,1),0),MATCH(EmployeeVariances[[#Headers],[Oct]],EmployeePlan[#Headers],0))-INDEX(EmployeeActual[],MATCH(INDEX(EmployeeVariances[],ROW()-ROW(EmployeeVariances[[#Headers],[Oct]]),1),INDEX(EmployeePlan[],,1),0),MATCH(EmployeeVariances[[#Headers],[Oct]],EmployeeActual[#Headers],0)) -> $24,948.00 | M7: =INDEX(EmployeePlan[],MATCH(INDEX(EmployeeVariances[],ROW()-ROW(EmployeeVariances[[#Headers],[Nov]]),1),INDEX(EmployeePlan[],,1),0),MATCH(EmployeeVariances[[#Headers],[Nov]],EmployeePlan[#Headers],0))-INDEX(EmployeeActual[],MATCH(INDEX(EmployeeVariances[],ROW()-ROW(EmployeeVariances[[#Headers],[Nov]]),1),INDEX(EmployeePlan[],,1),0),MATCH(EmployeeVariances[[#Headers],[Nov]],EmployeeActual[#Headers],0)) -> $24,948.00 | N7: =INDEX(EmployeePlan[],MATCH(INDEX(EmployeeVariances[],ROW()-ROW(EmployeeVariances[[#Headers],[Dec]]),1),INDEX(EmployeePlan[],,1),0),MATCH(EmployeeVariances[[#Headers],[Dec]],EmployeePlan[#Headers],0))-INDEX(EmployeeActual[],MATCH(INDEX(EmployeeVariances[],ROW()-ROW(EmployeeVariances[[#Headers],[Dec]]),1),INDEX(EmployeePlan[],,1),0),MATCH(EmployeeVariances[[#Headers],[Dec]],EmployeeActual[#Headers],0)) -> $24,948.00 | O7: =SUM(EmployeeVariances[[#This Row],[Jan]:[Dec]]) -> $147,960.00
B8: Subtotal | C8: =SUBTOTAL(109,EmployeeVariances[Jan]) -> $0.00 | D8: =SUBTOTAL(109,EmployeeVariances[Feb]) -> $0.00 | E8: =SUBTOTAL(109,EmployeeVariances[Mar]) -> $0.00 | F8: =SUBTOTAL(109,EmployeeVariances[Apr]) -> ($635.00) | G8: =SUBTOTAL(109,EmployeeVariances[May]) -> ($635.00) | H8: =SUBTOTAL(109,EmployeeVariances[Jun]) -> ($635.00) | I8: =SUBTOTAL(109,EmployeeVariances[Jul]) -> $111,125.00 | J8: =SUBTOTAL(109,EmployeeVariances[Aug]) -> $117,348.00 | K8: =SUBTOTAL(109,EmployeeVariances[Sep]) -> $117,348.00 | L8: =SUBTOTAL(109,EmployeeVariances[Oct]) -> $117,348.00 | M8: =SUBTOTAL(109,EmployeeVariances[Nov]) -> $117,348.00 | N8: =SUBTOTAL(109,EmployeeVariances[Dec]) -> $117,348.00 | O8: =SUBTOTAL(109,EmployeeVariances[YEAR]) -> $695,960.00
A10: Variance in Office Costs is auto calculated in Office Variances table starting in cell at right. Next instruction is in cell A21. | B10: Office Costs | C10: Jan | D10: Feb | E10: Mar | F10: Apr | G10: May | H10: Jun | I10: Jul | J10: Aug | K10: Sep | L10: Oct | M10: Nov | N10: Dec | O10: YEAR
B11: Office lease | C11: =INDEX(OfficePlan[],MATCH(INDEX(OfficeVariances[],ROW()-ROW(OfficeVariances[[#Headers],[Jan]]),1),INDEX(OfficePlan[],,1),0),MATCH(OfficeVariances[[#Headers],[Jan]],OfficePlan[#Headers],0))-INDEX(OfficeActual[],MATCH(INDEX(OfficeVariances[],ROW()-ROW(OfficeVariances[[#Headers],[Jan]]),1),INDEX(OfficePlan[],,1),0),MATCH(OfficeVariances[[#Headers],[Jan]],OfficeActual[#Headers],0)) -> $0.00 | D11: =INDEX(OfficePlan[],MATCH(INDEX(OfficeVariances[],ROW()-ROW(OfficeVariances[[#Headers],[Feb]]),1),INDEX(OfficePlan[],,1),0),MATCH(OfficeVariances[[#Headers],[Feb]],OfficePlan[#Headers],0))-INDEX(OfficeActual[],MATCH(INDEX(OfficeVariances[],ROW()-ROW(OfficeVariances[[#Headers],[Feb]]),1),INDEX(OfficePlan[],,1),0),MATCH(OfficeVariances[[#Headers],[Feb]],OfficeActual[#Headers],0)) -> $0.00 | E11: =INDEX(OfficePlan[],MATCH(INDEX(OfficeVariances[],ROW()-ROW(OfficeVariances[[#Headers],[Mar]]),1),INDEX(OfficePlan[],,1),0),MATCH(OfficeVariances[[#Headers],[Mar]],OfficePlan[#Headers],0))-INDEX(OfficeActual[],MATCH(INDEX(OfficeVariances[],ROW()-ROW(OfficeVariances[[#Headers],[Mar]]),1),INDEX(OfficePlan[],,1),0),MATCH(OfficeVariances[[#Headers],[Mar]],OfficeActual[#Headers],0)) -> $0.00 | F11: =INDEX(OfficePlan[],MATCH(INDEX(OfficeVariances[],ROW()-ROW(OfficeVariances[[#Headers],[Apr]]),1),INDEX(OfficePlan[],,1),0),MATCH(OfficeVariances[[#Headers],[Apr]],OfficePlan[#Headers],0))-INDEX(OfficeActual[],MATCH(INDEX(OfficeVariances[],ROW()-ROW(OfficeVariances[[#Headers],[Apr]]),1),INDEX(OfficePlan[],,1),0),MATCH(OfficeVariances[[#Headers],[Apr]],OfficeActual[#Headers],0)) -> $0.00 | G11: =INDEX(OfficePlan[],MATCH(INDEX(OfficeVariances[],ROW()-ROW(OfficeVariances[[#Headers],[May]]),1),INDEX(OfficePlan[],,1),0),MATCH(OfficeVariances[[#Headers],[May]],OfficePlan[#Headers],0))-INDEX(OfficeActual[],MATCH(INDEX(OfficeVariances[],ROW()-ROW(OfficeVariances[[#Headers],[May]]),1),INDEX(OfficePlan[],,1),0),MATCH(OfficeVariances[[#Headers],[May]],OfficeActual[#Headers],0)) -> $0.00 | H11: =INDEX(OfficePlan[],MATCH(INDEX(OfficeVariances[],ROW()-ROW(OfficeVariances[[#Headers],[Jun]]),1),INDEX(OfficePlan[],,1),0),MATCH(OfficeVariances[[#Headers],[Jun]],OfficePlan[#Headers],0))-INDEX(OfficeActual[],MATCH(INDEX(OfficeVariances[],ROW()-ROW(OfficeVariances[[#Headers],[Jun]]),1),INDEX(OfficePlan[],,1),0),MATCH(OfficeVariances[[#Headers],[Jun]],OfficeActual[#Headers],0)) -> $0.00 | I11: =INDEX(OfficePlan[],MATCH(INDEX(OfficeVariances[],ROW()-ROW(OfficeVariances[[#Headers],[Jul]]),1),INDEX(OfficePlan[],,1),0),MATCH(OfficeVariances[[#Headers],[Jul]],OfficePlan[#Headers],0))-INDEX(OfficeActual[],MATCH(INDEX(OfficeVariances[],ROW()-ROW(OfficeVariances[[#Headers],[Jul]]),1),INDEX(OfficePlan[],,1),0),MATCH(OfficeVariances[[#Headers],[Jul]],OfficeActual[#Headers],0)) -> $9,800.00 | J11: =INDEX(OfficePlan[],MATCH(INDEX(OfficeVariances[],ROW()-ROW(OfficeVariances[[#Headers],[Aug]]),1),INDEX(OfficePlan[],,1),0),MATCH(OfficeVariances[[#Headers],[Aug]],OfficePlan[#Headers],0))-INDEX(OfficeActual[],MATCH(INDEX(OfficeVariances[],ROW()-ROW(OfficeVariances[[#Headers],[Aug]]),1),INDEX(OfficePlan[],,1),0),MATCH(OfficeVariances[[#Headers],[Aug]],OfficeActual[#Headers],0)) -> $9,800.00 | K11: =INDEX(OfficePlan[],MATCH(INDEX(OfficeVariances[],ROW()-ROW(OfficeVariances[[#Headers],[Sep]]),1),INDEX(OfficePlan[],,1),0),MATCH(OfficeVariances[[#Headers],[Sep]],OfficePlan[#Headers],0))-INDEX(OfficeActual[],MATCH(INDEX(OfficeVariances[],ROW()-ROW(OfficeVariances[[#Headers],[Sep]]),1),INDEX(OfficePlan[],,1),0),MATCH(OfficeVariances[[#Headers],[Sep]],OfficeActual[#Headers],0)) -> $9,800.00 | L11: =INDEX(OfficePlan[],MATCH(INDEX(OfficeVariances[],ROW()-ROW(OfficeVariances[[#Headers],[Oct]]),1),INDEX(OfficePlan[],,1),0),MATCH(OfficeVariances[[#Headers],[Oct]],OfficePlan[#Headers],0))-INDEX(OfficeActual[],MATCH(INDEX(OfficeVariances[],ROW()-ROW(OfficeVariances[[#Headers],[Oct]]),1),INDEX(OfficePlan[],,1),0),MATCH(OfficeVariances[[#Headers],[Oct]],OfficeActual[#Headers],0)) -> $9,800.00 | M11: =INDEX(OfficePlan[],MATCH(INDEX(OfficeVariances[],ROW()-ROW(OfficeVariances[[#Headers],[Nov]]),1),INDEX(OfficePlan[],,1),0),MATCH(OfficeVariances[[#Headers],[Nov]],OfficePlan[#Headers],0))-INDEX(OfficeActual[],MATCH(INDEX(OfficeVariances[],ROW()-ROW(OfficeVariances[[#Headers],[Nov]]),1),INDEX(OfficePlan[],,1),0),MATCH(OfficeVariances[[#Headers],[Nov]],OfficeActual[#Headers],0)) -> $9,800.00 | N11: =INDEX(OfficePlan[],MATCH(INDEX(OfficeVariances[],ROW()-ROW(OfficeVariances[[#Headers],[Dec]]),1),INDEX(OfficePlan[],,1),0),MATCH(OfficeVariances[[#Headers],[Dec]],OfficePlan[#Headers],0))-INDEX(OfficeActual[],MATCH(INDEX(OfficeVariances[],ROW()-ROW(OfficeVariances[[#Headers],[Dec]]),1),INDEX(OfficePlan[],,1),0),MATCH(OfficeVariances[[#Headers],[Dec]],OfficeActual[#Headers],0)) -> $9,800.00 | O11: =SUM(OfficeVariances[[#This Row],[Jan]:[Dec]]) -> $58,800.00
B12: Gas | C12: =INDEX(OfficePlan[],MATCH(INDEX(OfficeVariances[],ROW()-ROW(OfficeVariances[[#Headers],[Jan]]),1),INDEX(OfficePlan[],,1),0),MATCH(OfficeVariances[[#Headers],[Jan]],OfficePlan[#Headers],0))-INDEX(OfficeActual[],MATCH(INDEX(OfficeVariances[],ROW()-ROW(OfficeVariances[[#Headers],[Jan]]),1),INDEX(OfficePlan[],,1),0),MATCH(OfficeVariances[[#Headers],[Jan]],OfficeActual[#Headers],0)) -> ($4.00) | D12: =INDEX(OfficePlan[],MATCH(INDEX(OfficeVariances[],ROW()-ROW(OfficeVariances[[#Headers],[Feb]]),1),INDEX(OfficePlan[],,1),0),MATCH(OfficeVariances[[#Headers],[Feb]],OfficePlan[#Headers],0))-INDEX(OfficeActual[],MATCH(INDEX(OfficeVariances[],ROW()-ROW(OfficeVariances[[#Headers],[Feb]]),1),INDEX(OfficePlan[],,1),0),MATCH(OfficeVariances[[#Headers],[Feb]],OfficeActual[#Headers],0)) -> ($30.00) | E12: =INDEX(OfficePlan[],MATCH(INDEX(OfficeVariances[],ROW()-ROW(OfficeVariances[[#Headers],[Mar]]),1),INDEX(OfficePlan[],,1),0),MATCH(OfficeVariances[[#Headers],[Mar]],OfficePlan[#Headers],0))-INDEX(OfficeActual[],MATCH(INDEX(OfficeVariances[],ROW()-ROW(OfficeVariances[[#Headers],[Mar]]),1),INDEX(OfficePlan[],,1),0),MATCH(OfficeVariances[[#Headers],[Mar]],OfficeActual[#Headers],0)) -> $15.00 | F12: =INDEX(OfficePlan[],MATCH(INDEX(OfficeVariances[],ROW()-ROW(OfficeVariances[[#Headers],[Apr]]),1),INDEX(OfficePlan[],,1),0),MATCH(OfficeVariances[[#Headers],[Apr]],OfficePlan[#Headers],0))-INDEX(OfficeActual[],MATCH(INDEX(OfficeVariances[],ROW()-ROW(OfficeVariances[[#Headers],[Apr]]),1),INDEX(OfficePlan[],,1),0),MATCH(OfficeVariances[[#Headers],[Apr]],OfficeActual[#Headers],0)) -> ($130.00) | G12: =INDEX(OfficePlan[],MATCH(INDEX(OfficeVariances[],ROW()-ROW(OfficeVariances[[#Headers],[May]]),1),INDEX(OfficePlan[],,1),0),MATCH(OfficeVariances[[#Headers],[May]],OfficePlan[#Headers],0))-INDEX(OfficeActual[],MATCH(INDEX(OfficeVariances[],ROW()-ROW(OfficeVariances[[#Headers],[May]]),1),INDEX(OfficePlan[],,1),0),MATCH(OfficeVariances[[#Headers],[May]],OfficeActual[#Headers],0)) -> $13.00 | H12: =INDEX(OfficePlan[],MATCH(INDEX(OfficeVariances[],ROW()-ROW(OfficeVariances[[#Headers],[Jun]]),1),INDEX(OfficePlan[],,1),0),MATCH(OfficeVariances[[#Headers],[Jun]],OfficePlan[#Headers],0))-INDEX(OfficeActual[],MATCH(INDEX(OfficeVariances[],ROW()-ROW(OfficeVariances[[#Headers],[Jun]]),1),INDEX(OfficePlan[],,1),0),MATCH(OfficeVariances[[#Headers],[Jun]],OfficeActual[#Headers],0)) -> $12.00 | I12: =INDEX(OfficePlan[],MATCH(INDEX(OfficeVariances[],ROW()-ROW(OfficeVariances[[#Headers],[Jul]]),1),INDEX(OfficePlan[],,1),0),MATCH(OfficeVariances[[#Headers],[Jul]],OfficePlan[#Headers],0))-INDEX(OfficeActual[],MATCH(INDEX(OfficeVariances[],ROW()-ROW(OfficeVariances[[#Headers],[Jul]]),1),INDEX(OfficePlan[],,1),0),MATCH(OfficeVariances[[#Headers],[Jul]],OfficeActual[#Headers],0)) -> $100.00 | J12: =INDEX(OfficePlan[],MATCH(INDEX(OfficeVariances[],ROW()-ROW(OfficeVariances[[#Headers],[Aug]]),1),INDEX(OfficePlan[],,1),0),MATCH(OfficeVariances[[#Headers],[Aug]],OfficePlan[#Headers],0))-INDEX(OfficeActual[],MATCH(INDEX(OfficeVariances[],ROW()-ROW(OfficeVariances[[#Headers],[Aug]]),1),INDEX(OfficePlan[],,1),0),MATCH(OfficeVariances[[#Headers],[Aug]],OfficeActual[#Headers],0)) -> $100.00 | K12: =INDEX(OfficePlan[],MATCH(INDEX(OfficeVariances[],ROW()-ROW(OfficeVariances[[#Headers],[Sep]]),1),INDEX(OfficePlan[],,1),0),MATCH(OfficeVariances[[#Headers],[Sep]],OfficePlan[#Headers],0))-INDEX(OfficeActual[],MATCH(INDEX(OfficeVariances[],ROW()-ROW(OfficeVariances[[#Headers],[Sep]]),1),INDEX(OfficePlan[],,1),0),MATCH(OfficeVariances[[#Headers],[Sep]],OfficeActual[#Headers],0)) -> $100.00 | L12: =INDEX(OfficePlan[],MATCH(INDEX(OfficeVariances[],ROW()-ROW(OfficeVariances[[#Headers],[Oct]]),1),INDEX(OfficePlan[],,1),0),MATCH(OfficeVariances[[#Headers],[Oct]],OfficePlan[#Headers],0))-INDEX(OfficeActual[],MATCH(INDEX(OfficeVariances[],ROW()-ROW(OfficeVariances[[#Headers],[Oct]]),1),INDEX(OfficePlan[],,1),0),MATCH(OfficeVariances[[#Headers],[Oct]],OfficeActual[#Headers],0)) -> $100.00 | M12: =INDEX(OfficePlan[],MATCH(INDEX(OfficeVariances[],ROW()-ROW(OfficeVariances[[#Headers],[Nov]]),1),INDEX(OfficePlan[],,1),0),MATCH(OfficeVariances[[#Headers],[Nov]],OfficePlan[#Headers],0))-INDEX(OfficeActual[],MATCH(INDEX(OfficeVariances[],ROW()-ROW(OfficeVariances[[#Headers],[Nov]]),1),INDEX(OfficePlan[],,1),0),MATCH(OfficeVariances[[#Headers],[Nov]],OfficeActual[#Headers],0)) -> $400.00 | N12: =INDEX(OfficePlan[],MATCH(INDEX(OfficeVariances[],ROW()-ROW(OfficeVariances[[#Headers],[Dec]]),1),INDEX(OfficePlan[],,1),0),MATCH(OfficeVariances[[#Headers],[Dec]],OfficePlan[#Headers],0))-INDEX(OfficeActual[],MATCH(INDEX(OfficeVariances[],ROW()-ROW(OfficeVariances[[#Headers],[Dec]]),1),INDEX(OfficePlan[],,1),0),MATCH(OfficeVariances[[#Headers],[Dec]],OfficeActual[#Headers],0)) -> $400.00 | O12: =SUM(OfficeVariances[[#This Row],[Jan]:[Dec]]) -> $1,076.00
B13: Electric | C13: =INDEX(OfficePlan[],MATCH(INDEX(OfficeVariances[],ROW()-ROW(OfficeVariances[[#Headers],[Jan]]),1),INDEX(OfficePlan[],,1),0),MATCH(OfficeVariances[[#Headers],[Jan]],OfficePlan[#Headers],0))-INDEX(OfficeActual[],MATCH(INDEX(OfficeVariances[],ROW()-ROW(OfficeVariances[[#Headers],[Jan]]),1),INDEX(OfficePlan[],,1),0),MATCH(OfficeVariances[[#Headers],[Jan]],OfficeActual[#Headers],0)) -> $12.00 | D13: =INDEX(OfficePlan[],MATCH(INDEX(OfficeVariances[],ROW()-ROW(OfficeVariances[[#Headers],[Feb]]),1),INDEX(OfficePlan[],,1),0),MATCH(OfficeVariances[[#Headers],[Feb]],OfficePlan[#Headers],0))-INDEX(OfficeActual[],MATCH(INDEX(OfficeVariances[],ROW()-ROW(OfficeVariances[[#Headers],[Feb]]),1),INDEX(OfficePlan[],,1),0),MATCH(OfficeVariances[[#Headers],[Feb]],OfficeActual[#Headers],0)) -> $22.00 | E13: =INDEX(OfficePlan[],MATCH(INDEX(OfficeVariances[],ROW()-ROW(OfficeVariances[[#Headers],[Mar]]),1),INDEX(OfficePlan[],,1),0),MATCH(OfficeVariances[[#Headers],[Mar]],OfficePlan[#Headers],0))-INDEX(OfficeActual[],MATCH(INDEX(OfficeVariances[],ROW()-ROW(OfficeVariances[[#Headers],[Mar]]),1),INDEX(OfficePlan[],,1),0),MATCH(OfficeVariances[[#Headers],[Mar]],OfficeActual[#Headers],0)) -> $32.00 | F13: =INDEX(OfficePlan[],MATCH(INDEX(OfficeVariances[],ROW()-ROW(OfficeVariances[[#Headers],[Apr]]),1),INDEX(OfficePlan[],,1),0),MATCH(OfficeVariances[[#Headers],[Apr]],OfficePlan[#Headers],0))-INDEX(OfficeActual[],MATCH(INDEX(OfficeVariances[],ROW()-ROW(OfficeVariances[[#Headers],[Apr]]),1),INDEX(OfficePlan[],,1),0),MATCH(OfficeVariances[[#Headers],[Apr]],OfficeActual[#Headers],0)) -> $1.00 | G13: =INDEX(OfficePlan[],MATCH(INDEX(OfficeVariances[],ROW()-ROW(OfficeVariances[[#Headers],[May]]),1),INDEX(OfficePlan[],,1),0),MATCH(OfficeVariances[[#Headers],[May]],OfficePlan[#Headers],0))-INDEX(OfficeActual[],MATCH(INDEX(OfficeVariances[],ROW()-ROW(OfficeVariances[[#Headers],[May]]),1),INDEX(OfficePlan[],,1),0),MATCH(OfficeVariances[[#Headers],[May]],OfficeActual[#Headers],0)) -> ($6.00) | H13: =INDEX(OfficePlan[],MATCH(INDEX(OfficeVariances[],ROW()-ROW(OfficeVariances[[#Headers],[Jun]]),1),INDEX(OfficePlan[],,1),0),MATCH(OfficeVariances[[#Headers],[Jun]],OfficePlan[#Headers],0))-INDEX(OfficeActual[],MATCH(INDEX(OfficeVariances[],ROW()-ROW(OfficeVariances[[#Headers],[Jun]]),1),INDEX(OfficePlan[],,1),0),MATCH(OfficeVariances[[#Headers],[Jun]],OfficeActual[#Headers],0)) -> $10.00 | I13: =INDEX(OfficePlan[],MATCH(INDEX(OfficeVariances[],ROW()-ROW(OfficeVariances[[#Headers],[Jul]]),1),INDEX(OfficePlan[],,1),0),MATCH(OfficeVariances[[#Headers],[Jul]],OfficePlan[#Headers],0))-INDEX(OfficeActual[],MATCH(INDEX(OfficeVariances[],ROW()-ROW(OfficeVariances[[#Headers],[Jul]]),1),INDEX(OfficePlan[],,1),0),MATCH(OfficeVariances[[#Headers],[Jul]],OfficeActual[#Headers],0)) -> $300.00 | J13: =INDEX(OfficePlan[],MATCH(INDEX(OfficeVariances[],ROW()-ROW(OfficeVariances[[#Headers],[Aug]]),1),INDEX(OfficePlan[],,1),0),MATCH(OfficeVariances[[#Headers],[Aug]],OfficePlan[#Headers],0))-INDEX(OfficeActual[],MATCH(INDEX(OfficeVariances[],ROW()-ROW(OfficeVariances[[#Headers],[Aug]]),1),INDEX(OfficePlan[],,1),0),MATCH(OfficeVariances[[#Headers],[Aug]],OfficeActual[#Headers],0)) -> $300.00 | K13: =INDEX(OfficePlan[],MATCH(INDEX(OfficeVariances[],ROW()-ROW(OfficeVariances[[#Headers],[Sep]]),1),INDEX(OfficePlan[],,1),0),MATCH(OfficeVariances[[#Headers],[Sep]],OfficePlan[#Headers],0))-INDEX(OfficeActual[],MATCH(INDEX(OfficeVariances[],ROW()-ROW(OfficeVariances[[#Headers],[Sep]]),1),INDEX(OfficePlan[],,1),0),MATCH(OfficeVariances[[#Headers],[Sep]],OfficeActual[#Headers],0)) -> $300.00 | L13: =INDEX(OfficePlan[],MATCH(INDEX(OfficeVariances[],ROW()-ROW(OfficeVariances[[#Headers],[Oct]]),1),INDEX(OfficePlan[],,1),0),MATCH(OfficeVariances[[#Headers],[Oct]],OfficePlan[#Headers],0))-INDEX(OfficeActual[],MATCH(INDEX(OfficeVariances[],ROW()-ROW(OfficeVariances[[#Headers],[Oct]]),1),INDEX(OfficePlan[],,1),0),MATCH(OfficeVariances[[#Headers],[Oct]],OfficeActual[#Headers],0)) -> $300.00 | M13: =INDEX(OfficePlan[],MATCH(INDEX(OfficeVariances[],ROW()-ROW(OfficeVariances[[#Headers],[Nov]]),1),INDEX(OfficePlan[],,1),0),MATCH(OfficeVariances[[#Headers],[Nov]],OfficePlan[#Headers],0))-INDEX(OfficeActual[],MATCH(INDEX(OfficeVariances[],ROW()-ROW(OfficeVariances[[#Headers],[Nov]]),1),INDEX(OfficePlan[],,1),0),MATCH(OfficeVariances[[#Headers],[Nov]],OfficeActual[#Headers],0)) -> $300.00 | N13: =INDEX(OfficePlan[],MATCH(INDEX(OfficeVariances[],ROW()-ROW(OfficeVariances[[#Headers],[Dec]]),1),INDEX(OfficePlan[],,1),0),MATCH(OfficeVariances[[#Headers],[Dec]],OfficePlan[#Headers],0))-INDEX(OfficeActual[],MATCH(INDEX(OfficeVariances[],ROW()-ROW(OfficeVariances[[#Headers],[Dec]]),1),INDEX(OfficePlan[],,1),0),MATCH(OfficeVariances[[#Headers],[Dec]],OfficeActual[#Headers],0)) -> $300.00 | O13: =SUM(OfficeVariances[[#This Row],[Jan]:[Dec]]) -> $1,871.00
B14: Water | C14: =INDEX(OfficePlan[],MATCH(INDEX(OfficeVariances[],ROW()-ROW(OfficeVariances[[#Headers],[Jan]]),1),INDEX(OfficePlan[],,1),0),MATCH(OfficeVariances[[#Headers],[Jan]],OfficePlan[#Headers],0))-INDEX(OfficeActual[],MATCH(INDEX(OfficeVariances[],ROW()-ROW(OfficeVariances[[#Headers],[Jan]]),1),INDEX(OfficePlan[],,1),0),MATCH(OfficeVariances[[#Headers],[Jan]],OfficeActual[#Headers],0)) -> $5.00 | D14: =INDEX(OfficePlan[],MATCH(INDEX(OfficeVariances[],ROW()-ROW(OfficeVariances[[#Headers],[Feb]]),1),INDEX(OfficePlan[],,1),0),MATCH(OfficeVariances[[#Headers],[Feb]],OfficePlan[#Headers],0))-INDEX(OfficeActual[],MATCH(INDEX(OfficeVariances[],ROW()-ROW(OfficeVariances[[#Headers],[Feb]]),1),INDEX(OfficePlan[],,1),0),MATCH(OfficeVariances[[#Headers],[Feb]],OfficeActual[#Headers],0)) -> $7.00 | E14: =INDEX(OfficePlan[],MATCH(INDEX(OfficeVariances[],ROW()-ROW(OfficeVariances[[#Headers],[Mar]]),1),INDEX(OfficePlan[],,1),0),MATCH(OfficeVariances[[#Headers],[Mar]],OfficePlan[#Headers],0))-INDEX(OfficeActual[],MATCH(INDEX(OfficeVariances[],ROW()-ROW(OfficeVariances[[#Headers],[Mar]]),1),INDEX(OfficePlan[],,1),0),MATCH(OfficeVariances[[#Headers],[Mar]],OfficeActual[#Headers],0)) -> $6.00 | F14: =INDEX(OfficePlan[],MATCH(INDEX(OfficeVariances[],ROW()-ROW(OfficeVariances[[#Headers],[Apr]]),1),INDEX(OfficePlan[],,1),0),MATCH(OfficeVariances[[#Headers],[Apr]],OfficePlan[#Headers],0))-INDEX(OfficeActual[],MATCH(INDEX(OfficeVariances[],ROW()-ROW(OfficeVariances[[#Headers],[Apr]]),1),INDEX(OfficePlan[],,1),0),MATCH(OfficeVariances[[#Headers],[Apr]],OfficeActual[#Headers],0)) -> $4.00 | G14: =INDEX(OfficePlan[],MATCH(INDEX(OfficeVariances[],ROW()-ROW(OfficeVariances[[#Headers],[May]]),1),INDEX(OfficePlan[],,1),0),MATCH(OfficeVariances[[#Headers],[May]],OfficePlan[#Headers],0))-INDEX(OfficeActual[],MATCH(INDEX(OfficeVariances[],ROW()-ROW(OfficeVariances[[#Headers],[May]]),1),INDEX(OfficePlan[],,1),0),MATCH(OfficeVariances[[#Headers],[May]],OfficeActual[#Headers],0)) -> $6.00 | H14: =INDEX(OfficePlan[],MATCH(INDEX(OfficeVariances[],ROW()-ROW(OfficeVariances[[#Headers],[Jun]]),1),INDEX(OfficePlan[],,1),0),MATCH(OfficeVariances[[#Headers],[Jun]],OfficePlan[#Headers],0))-INDEX(OfficeActual[],MATCH(INDEX(OfficeVariances[],ROW()-ROW(OfficeVariances[[#Headers],[Jun]]),1),INDEX(OfficePlan[],,1),0),MATCH(OfficeVariances[[#Headers],[Jun]],OfficeActual[#Headers],0)) -> $4.00 | I14: =INDEX(OfficePlan[],MATCH(INDEX(OfficeVariances[],ROW()-ROW(OfficeVariances[[#Headers],[Jul]]),1),INDEX(OfficePlan[],,1),0),MATCH(OfficeVariances[[#Headers],[Jul]],OfficePlan[#Headers],0))-INDEX(OfficeActual[],MATCH(INDEX(OfficeVariances[],ROW()-ROW(OfficeVariances[[#Headers],[Jul]]),1),INDEX(OfficePlan[],,1),0),MATCH(OfficeVariances[[#Headers],[Jul]],OfficeActual[#Headers],0)) -> $40.00 | J14: =INDEX(OfficePlan[],MATCH(INDEX(OfficeVariances[],ROW()-ROW(OfficeVariances[[#Headers],[Aug]]),1),INDEX(OfficePlan[],,1),0),MATCH(OfficeVariances[[#Headers],[Aug]],OfficePlan[#Headers],0))-INDEX(OfficeActual[],MATCH(INDEX(OfficeVariances[],ROW()-ROW(OfficeVariances[[#Headers],[Aug]]),1),INDEX(OfficePlan[],,1),0),MATCH(OfficeVariances[[#Headers],[Aug]],OfficeActual[#Headers],0)) -> $40.00 | K14: =INDEX(OfficePlan[],MATCH(INDEX(OfficeVariances[],ROW()-ROW(OfficeVariances[[#Headers],[Sep]]),1),INDEX(OfficePlan[],,1),0),MATCH(OfficeVariances[[#Headers],[Sep]],OfficePlan[#Headers],0))-INDEX(OfficeActual[],MATCH(INDEX(OfficeVariances[],ROW()-ROW(OfficeVariances[[#Headers],[Sep]]),1),INDEX(OfficePlan[],,1),0),MATCH(OfficeVariances[[#Headers],[Sep]],OfficeActual[#Headers],0)) -> $40.00 | L14: =INDEX(OfficePlan[],MATCH(INDEX(OfficeVariances[],ROW()-ROW(OfficeVariances[[#Headers],[Oct]]),1),INDEX(OfficePlan[],,1),0),MATCH(OfficeVariances[[#Headers],[Oct]],OfficePlan[#Headers],0))-INDEX(OfficeActual[],MATCH(INDEX(OfficeVariances[],ROW()-ROW(OfficeVariances[[#Headers],[Oct]]),1),INDEX(OfficePlan[],,1),0),MATCH(OfficeVariances[[#Headers],[Oct]],OfficeActual[#Headers],0)) -> $40.00 | M14: =INDEX(OfficePlan[],MATCH(INDEX(OfficeVariances[],ROW()-ROW(OfficeVariances[[#Headers],[Nov]]),1),INDEX(OfficePlan[],,1),0),MATCH(OfficeVariances[[#Headers],[Nov]],OfficePlan[#Headers],0))-INDEX(OfficeActual[],MATCH(INDEX(OfficeVariances[],ROW()-ROW(OfficeVariances[[#Headers],[Nov]]),1),INDEX(OfficePlan[],,1),0),MATCH(OfficeVariances[[#Headers],[Nov]],OfficeActual[#Headers],0)) -> $40.00 | N14: =INDEX(OfficePlan[],MATCH(INDEX(OfficeVariances[],ROW()-ROW(OfficeVariances[[#Headers],[Dec]]),1),INDEX(OfficePlan[],,1),0),MATCH(OfficeVariances[[#Headers],[Dec]],OfficePlan[#Headers],0))-INDEX(OfficeActual[],MATCH(INDEX(OfficeVariances[],ROW()-ROW(OfficeVariances[[#Headers],[Dec]]),1),INDEX(OfficePlan[],,1),0),MATCH(OfficeVariances[[#Headers],[Dec]],OfficeActual[#Headers],0)) -> $40.00 | O14: =SUM(OfficeVariances[[#This Row],[Jan]:[Dec]]) -> $272.00
B15: Telephone | C15: =INDEX(OfficePlan[],MATCH(INDEX(OfficeVariances[],ROW()-ROW(OfficeVariances[[#Headers],[Jan]]),1),INDEX(OfficePlan[],,1),0),MATCH(OfficeVariances[[#Headers],[Jan]],OfficePlan[#Headers],0))-INDEX(OfficeActual[],MATCH(INDEX(OfficeVariances[],ROW()-ROW(OfficeVariances[[#Headers],[Jan]]),1),INDEX(OfficePlan[],,1),0),MATCH(OfficeVariances[[#Headers],[Jan]],OfficeActual[#Headers],0)) -> $26.00 | D15: =INDEX(OfficePlan[],MATCH(INDEX(OfficeVariances[],ROW()-ROW(OfficeVariances[[#Headers],[Feb]]),1),INDEX(OfficePlan[],,1),0),MATCH(OfficeVariances[[#Headers],[Feb]],OfficePlan[#Headers],0))-INDEX(OfficeActual[],MATCH(INDEX(OfficeVariances[],ROW()-ROW(OfficeVariances[[#Headers],[Feb]]),1),INDEX(OfficePlan[],,1),0),MATCH(OfficeVariances[[#Headers],[Feb]],OfficeActual[#Headers],0)) -> $15.00 | E15: =INDEX(OfficePlan[],MATCH(INDEX(OfficeVariances[],ROW()-ROW(OfficeVariances[[#Headers],[Mar]]),1),INDEX(OfficePlan[],,1),0),MATCH(OfficeVariances[[#Headers],[Mar]],OfficePlan[#Headers],0))-INDEX(OfficeActual[],MATCH(INDEX(OfficeVariances[],ROW()-ROW(OfficeVariances[[#Headers],[Mar]]),1),INDEX(OfficePlan[],,1),0),MATCH(OfficeVariances[[#Headers],[Mar]],OfficeActual[#Headers],0)) -> ($15.00) | F15: =INDEX(OfficePlan[],MATCH(INDEX(OfficeVariances[],ROW()-ROW(OfficeVariances[[#Headers],[Apr]]),1),INDEX(OfficePlan[],,1),0),MATCH(OfficeVariances[[#Headers],[Apr]],OfficePlan[#Headers],0))-INDEX(OfficeActual[],MATCH(INDEX(OfficeVariances[],ROW()-ROW(OfficeVariances[[#Headers],[Apr]]),1),INDEX(OfficePlan[],,1),0),MATCH(OfficeVariances[[#Headers],[Apr]],OfficeActual[#Headers],0)) -> $5.00 | G15: =INDEX(OfficePlan[],MATCH(INDEX(OfficeVariances[],ROW()-ROW(OfficeVariances[[#Headers],[May]]),1),INDEX(OfficePlan[],,1),0),MATCH(OfficeVariances[[#Headers],[May]],OfficePlan[#Headers],0))-INDEX(OfficeActual[],MATCH(INDEX(OfficeVariances[],ROW()-ROW(OfficeVariances[[#Headers],[May]]),1),INDEX(OfficePlan[],,1),0),MATCH(OfficeVariances[[#Headers],[May]],OfficeActual[#Headers],0)) -> $5.00 | H15: =INDEX(OfficePlan[],MATCH(INDEX(OfficeVariances[],ROW()-ROW(OfficeVariances[[#Headers],[Jun]]),1),INDEX(OfficePlan[],,1),0),MATCH(OfficeVariances[[#Headers],[Jun]],OfficePlan[#Headers],0))-INDEX(OfficeActual[],MATCH(INDEX(OfficeVariances[],ROW()-ROW(OfficeVariances[[#Headers],[Jun]]),1),INDEX(OfficePlan[],,1),0),MATCH(OfficeVariances[[#Headers],[Jun]],OfficeActual[#Headers],0)) -> $30.00 | I15: =INDEX(OfficePlan[],MATCH(INDEX(OfficeVariances[],ROW()-ROW(OfficeVariances[[#Headers],[Jul]]),1),INDEX(OfficePlan[],,1),0),MATCH(OfficeVariances[[#Headers],[Jul]],OfficePlan[#Headers],0))-INDEX(OfficeActual[],MATCH(INDEX(OfficeVariances[],ROW()-ROW(OfficeVariances[[#Headers],[Jul]]),1),INDEX(OfficePlan[],,1),0),MATCH(OfficeVariances[[#Headers],[Jul]],OfficeActual[#Headers],0)) -> $250.00 | J15: =INDEX(OfficePlan[],MATCH(INDEX(OfficeVariances[],ROW()-ROW(OfficeVariances[[#Headers],[Aug]]),1),INDEX(OfficePlan[],,1),0),MATCH(OfficeVariances[[#Headers],[Aug]],OfficePlan[#Headers],0))-INDEX(OfficeActual[],MATCH(INDEX(OfficeVariances[],ROW()-ROW(OfficeVariances[[#Headers],[Aug]]),1),INDEX(OfficePlan[],,1),0),MATCH(OfficeVariances[[#Headers],[Aug]],OfficeActual[#Headers],0)) -> $250.00 | K15: =INDEX(OfficePlan[],MATCH(INDEX(OfficeVariances[],ROW()-ROW(OfficeVariances[[#Headers],[Sep]]),1),INDEX(OfficePlan[],,1),0),MATCH(OfficeVariances[[#Headers],[Sep]],OfficePlan[#Headers],0))-INDEX(OfficeActual[],MATCH(INDEX(OfficeVariances[],ROW()-ROW(OfficeVariances[[#Headers],[Sep]]),1),INDEX(OfficePlan[],,1),0),MATCH(OfficeVariances[[#Headers],[Sep]],OfficeActual[#Headers],0)) -> $250.00 | L15: =INDEX(OfficePlan[],MATCH(INDEX(OfficeVariances[],ROW()-ROW(OfficeVariances[[#Headers],[Oct]]),1),INDEX(OfficePlan[],,1),0),MATCH(OfficeVariances[[#Headers],[Oct]],OfficePlan[#Headers],0))-INDEX(OfficeActual[],MATCH(INDEX(OfficeVariances[],ROW()-ROW(OfficeVariances[[#Headers],[Oct]]),1),INDEX(OfficePlan[],,1),0),MATCH(OfficeVariances[[#Headers],[Oct]],OfficeActual[#Headers],0)) -> $250.00 | M15: =INDEX(OfficePlan[],MATCH(INDEX(OfficeVariances[],ROW()-ROW(OfficeVariances[[#Headers],[Nov]]),1),INDEX(OfficePlan[],,1),0),MATCH(OfficeVariances[[#Headers],[Nov]],OfficePlan[#Headers],0))-INDEX(OfficeActual[],MATCH(INDEX(OfficeVariances[],ROW()-ROW(OfficeVariances[[#Headers],[Nov]]),1),INDEX(OfficePlan[],,1),0),MATCH(OfficeVariances[[#Headers],[Nov]],OfficeActual[#Headers],0)) -> $250.00 | N15: =INDEX(OfficePlan[],MATCH(INDEX(OfficeVariances[],ROW()-ROW(OfficeVariances[[#Headers],[Dec]]),1),INDEX(OfficePlan[],,1),0),MATCH(OfficeVariances[[#Headers],[Dec]],OfficePlan[#Headers],0))-INDEX(OfficeActual[],MATCH(INDEX(OfficeVariances[],ROW()-ROW(OfficeVariances[[#Headers],[Dec]]),1),INDEX(OfficePlan[],,1),0),MATCH(OfficeVariances[[#Headers],[Dec]],OfficeActual[#Headers],0)) -> $250.00 | O15: =SUM(OfficeVariances[[#This Row],[Jan]:[Dec]]) -> $1,566.00
B16: Internet access | C16: =INDEX(OfficePlan[],MATCH(INDEX(OfficeVariances[],ROW()-ROW(OfficeVariances[[#Headers],[Jan]]),1),INDEX(OfficePlan[],,1),0),MATCH(OfficeVariances[[#Headers],[Jan]],OfficePlan[#Headers],0))-INDEX(OfficeActual[],MATCH(INDEX(OfficeVariances[],ROW()-ROW(OfficeVariances[[#Headers],[Jan]]),1),INDEX(OfficePlan[],,1),0),MATCH(OfficeVariances[[#Headers],[Jan]],OfficeActual[#Headers],0)) -> $0.00 | D16: =INDEX(OfficePlan[],MATCH(INDEX(OfficeVariances[],ROW()-ROW(OfficeVariances[[#Headers],[Feb]]),1),INDEX(OfficePlan[],,1),0),MATCH(OfficeVariances[[#Headers],[Feb]],OfficePlan[#Headers],0))-INDEX(OfficeActual[],MATCH(INDEX(OfficeVariances[],ROW()-ROW(OfficeVariances[[#Headers],[Feb]]),1),INDEX(OfficePlan[],,1),0),MATCH(OfficeVariances[[#Headers],[Feb]],OfficeActual[#Headers],0)) -> $0.00 | E16: =INDEX(OfficePlan[],MATCH(INDEX(OfficeVariances[],ROW()-ROW(OfficeVariances[[#Headers],[Mar]]),1),INDEX(OfficePlan[],,1),0),MATCH(OfficeVariances[[#Headers],[Mar]],OfficePlan[#Headers],0))-INDEX(OfficeActual[],MATCH(INDEX(OfficeVariances[],ROW()-ROW(OfficeVariances[[#Headers],[Mar]]),1),INDEX(OfficePlan[],,1),0),MATCH(OfficeVariances[[#Headers],[Mar]],OfficeActual[#Headers],0)) -> $0.00 | F16: =INDEX(OfficePlan[],MATCH(INDEX(OfficeVariances[],ROW()-ROW(OfficeVariances[[#Headers],[Apr]]),1),INDEX(OfficePlan[],,1),0),MATCH(OfficeVariances[[#Headers],[Apr]],OfficePlan[#Headers],0))-INDEX(OfficeActual[],MATCH(INDEX(OfficeVariances[],ROW()-ROW(OfficeVariances[[#Headers],[Apr]]),1),INDEX(OfficePlan[],,1),0),MATCH(OfficeVariances[[#Headers],[Apr]],OfficeActual[#Headers],0)) -> $0.00 | G16: =INDEX(OfficePlan[],MATCH(INDEX(OfficeVariances[],ROW()-ROW(OfficeVariances[[#Headers],[May]]),1),INDEX(OfficePlan[],,1),0),MATCH(OfficeVariances[[#Headers],[May]],OfficePlan[#Headers],0))-INDEX(OfficeActual[],MATCH(INDEX(OfficeVariances[],ROW()-ROW(OfficeVariances[[#Headers],[May]]),1),INDEX(OfficePlan[],,1),0),MATCH(OfficeVariances[[#Headers],[May]],OfficeActual[#Headers],0)) -> $0.00 | H16: =INDEX(OfficePlan[],MATCH(INDEX(OfficeVariances[],ROW()-ROW(OfficeVariances[[#Headers],[Jun]]),1),INDEX(OfficePlan[],,1),0),MATCH(OfficeVariances[[#Headers],[Jun]],OfficePlan[#Headers],0))-INDEX(OfficeActual[],MATCH(INDEX(OfficeVariances[],ROW()-ROW(OfficeVariances[[#Headers],[Jun]]),1),INDEX(OfficePlan[],,1),0),MATCH(OfficeVariances[[#Headers],[Jun]],OfficeActual[#Headers],0)) -> $0.00 | I16: =INDEX(OfficePlan[],MATCH(INDEX(OfficeVariances[],ROW()-ROW(OfficeVariances[[#Headers],[Jul]]),1),INDEX(OfficePlan[],,1),0),MATCH(OfficeVariances[[#Headers],[Jul]],OfficePlan[#Headers],0))-INDEX(OfficeActual[],MATCH(INDEX(OfficeVariances[],ROW()-ROW(OfficeVariances[[#Headers],[Jul]]),1),INDEX(OfficePlan[],,1),0),MATCH(OfficeVariances[[#Headers],[Jul]],OfficeActual[#Headers],0)) -> $180.00 | J16: =INDEX(OfficePlan[],MATCH(INDEX(OfficeVariances[],ROW()-ROW(OfficeVariances[[#Headers],[Aug]]),1),INDEX(OfficePlan[],,1),0),MATCH(OfficeVariances[[#Headers],[Aug]],OfficePlan[#Headers],0))-INDEX(OfficeActual[],MATCH(INDEX(OfficeVariances[],ROW()-ROW(OfficeVariances[[#Headers],[Aug]]),1),INDEX(OfficePlan[],,1),0),MATCH(OfficeVariances[[#Headers],[Aug]],OfficeActual[#Headers],0)) -> $180.00 | K16: =INDEX(OfficePlan[],MATCH(INDEX(OfficeVariances[],ROW()-ROW(OfficeVariances[[#Headers],[Sep]]),1),INDEX(OfficePlan[],,1),0),MATCH(OfficeVariances[[#Headers],[Sep]],OfficePlan[#Headers],0))-INDEX(OfficeActual[],MATCH(INDEX(OfficeVariances[],ROW()-ROW(OfficeVariances[[#Headers],[Sep]]),1),INDEX(OfficePlan[],,1),0),MATCH(OfficeVariances[[#Headers],[Sep]],OfficeActual[#Headers],0)) -> $180.00 | L16: =INDEX(OfficePlan[],MATCH(INDEX(OfficeVariances[],ROW()-ROW(OfficeVariances[[#Headers],[Oct]]),1),INDEX(OfficePlan[],,1),0),MATCH(OfficeVariances[[#Headers],[Oct]],OfficePlan[#Headers],0))-INDEX(OfficeActual[],MATCH(INDEX(OfficeVariances[],ROW()-ROW(OfficeVariances[[#Headers],[Oct]]),1),INDEX(OfficePlan[],,1),0),MATCH(OfficeVariances[[#Headers],[Oct]],OfficeActual[#Headers],0)) -> $180.00 | M16: =INDEX(OfficePlan[],MATCH(INDEX(OfficeVariances[],ROW()-ROW(OfficeVariances[[#Headers],[Nov]]),1),INDEX(OfficePlan[],,1),0),MATCH(OfficeVariances[[#Headers],[Nov]],OfficePlan[#Headers],0))-INDEX(OfficeActual[],MATCH(INDEX(OfficeVariances[],ROW()-ROW(OfficeVariances[[#Headers],[Nov]]),1),INDEX(OfficePlan[],,1),0),MATCH(OfficeVariances[[#Headers],[Nov]],OfficeActual[#Headers],0)) -> $180.00 | N16: =INDEX(OfficePlan[],MATCH(INDEX(OfficeVariances[],ROW()-ROW(OfficeVariances[[#Headers],[Dec]]),1),INDEX(OfficePlan[],,1),0),MATCH(OfficeVariances[[#Headers],[Dec]],OfficePlan[#Headers],0))-INDEX(OfficeActual[],MATCH(INDEX(OfficeVariances[],ROW()-ROW(OfficeVariances[[#Headers],[Dec]]),1),INDEX(OfficePlan[],,1),0),MATCH(OfficeVariances[[#Headers],[Dec]],OfficeActual[#Headers],0)) -> $180.00 | O16: =SUM(OfficeVariances[[#This Row],[Jan]:[Dec]]) -> $1,080.00
B17: Office supplies | C17: =INDEX(OfficePlan[],MATCH(INDEX(OfficeVariances[],ROW()-ROW(OfficeVariances[[#Headers],[Jan]]),1),INDEX(OfficePlan[],,1),0),MATCH(OfficeVariances[[#Headers],[Jan]],OfficePlan[#Headers],0))-INDEX(OfficeActual[],MATCH(INDEX(OfficeVariances[],ROW()-ROW(OfficeVariances[[#Headers],[Jan]]),1),INDEX(OfficePlan[],,1),0),MATCH(OfficeVariances[[#Headers],[Jan]],OfficeActual[#Headers],0)) -> ($56.00) | D17: =INDEX(OfficePlan[],MATCH(INDEX(OfficeVariances[],ROW()-ROW(OfficeVariances[[#Headers],[Feb]]),1),INDEX(OfficePlan[],,1),0),MATCH(OfficeVariances[[#Headers],[Feb]],OfficePlan[#Headers],0))-INDEX(OfficeActual[],MATCH(INDEX(OfficeVariances[],ROW()-ROW(OfficeVariances[[#Headers],[Feb]]),1),INDEX(OfficePlan[],,1),0),MATCH(OfficeVariances[[#Headers],[Feb]],OfficeActual[#Headers],0)) -> $58.00 | E17: =INDEX(OfficePlan[],MATCH(INDEX(OfficeVariances[],ROW()-ROW(OfficeVariances[[#Headers],[Mar]]),1),INDEX(OfficePlan[],,1),0),MATCH(OfficeVariances[[#Headers],[Mar]],OfficePlan[#Headers],0))-INDEX(OfficeActual[],MATCH(INDEX(OfficeVariances[],ROW()-ROW(OfficeVariances[[#Headers],[Mar]]),1),INDEX(OfficePlan[],,1),0),MATCH(OfficeVariances[[#Headers],[Mar]],OfficeActual[#Headers],0)) -> $40.00 | F17: =INDEX(OfficePlan[],MATCH(INDEX(OfficeVariances[],ROW()-ROW(OfficeVariances[[#Headers],[Apr]]),1),INDEX(OfficePlan[],,1),0),MATCH(OfficeVariances[[#Headers],[Apr]],OfficePlan[#Headers],0))-INDEX(OfficeActual[],MATCH(INDEX(OfficeVariances[],ROW()-ROW(OfficeVariances[[#Headers],[Apr]]),1),INDEX(OfficePlan[],,1),0),MATCH(OfficeVariances[[#Headers],[Apr]],OfficeActual[#Headers],0)) -> ($21.00) | G17: =INDEX(OfficePlan[],MATCH(INDEX(OfficeVariances[],ROW()-ROW(OfficeVariances[[#Headers],[May]]),1),INDEX(OfficePlan[],,1),0),MATCH(OfficeVariances[[#Headers],[May]],OfficePlan[#Headers],0))-INDEX(OfficeActual[],MATCH(INDEX(OfficeVariances[],ROW()-ROW(OfficeVariances[[#Headers],[May]]),1),INDEX(OfficePlan[],,1),0),MATCH(OfficeVariances[[#Headers],[May]],OfficeActual[#Headers],0)) -> ($56.00) | H17: =INDEX(OfficePlan[],MATCH(INDEX(OfficeVariances[],ROW()-ROW(OfficeVariances[[#Headers],[Jun]]),1),INDEX(OfficePlan[],,1),0),MATCH(OfficeVariances[[#Headers],[Jun]],OfficePlan[#Headers],0))-INDEX(OfficeActual[],MATCH(INDEX(OfficeVariances[],ROW()-ROW(OfficeVariances[[#Headers],[Jun]]),1),INDEX(OfficePlan[],,1),0),MATCH(OfficeVariances[[#Headers],[Jun]],OfficeActual[#Headers],0)) -> ($40.00) | I17: =INDEX(OfficePlan[],MATCH(INDEX(OfficeVariances[],ROW()-ROW(OfficeVariances[[#Headers],[Jul]]),1),INDEX(OfficePlan[],,1),0),MATCH(OfficeVariances[[#Headers],[Jul]],OfficePlan[#Headers],0))-INDEX(OfficeActual[],MATCH(INDEX(OfficeVariances[],ROW()-ROW(OfficeVariances[[#Headers],[Jul]]),1),INDEX(OfficePlan[],,1),0),MATCH(OfficeVariances[[#Headers],[Jul]],OfficeActual[#Headers],0)) -> $200.00 | J17: =INDEX(OfficePlan[],MATCH(INDEX(OfficeVariances[],ROW()-ROW(OfficeVariances[[#Headers],[Aug]]),1),INDEX(OfficePlan[],,1),0),MATCH(OfficeVariances[[#Headers],[Aug]],OfficePlan[#Headers],0))-INDEX(OfficeActual[],MATCH(INDEX(OfficeVariances[],ROW()-ROW(OfficeVariances[[#Headers],[Aug]]),1),INDEX(OfficePlan[],,1),0),MATCH(OfficeVariances[[#Headers],[Aug]],OfficeActual[#Headers],0)) -> $200.00 | K17: =INDEX(OfficePlan[],MATCH(INDEX(OfficeVariances[],ROW()-ROW(OfficeVariances[[#Headers],[Sep]]),1),INDEX(OfficePlan[],,1),0),MATCH(OfficeVariances[[#Headers],[Sep]],OfficePlan[#Headers],0))-INDEX(OfficeActual[],MATCH(INDEX(OfficeVariances[],ROW()-ROW(OfficeVariances[[#Headers],[Sep]]),1),INDEX(OfficePlan[],,1),0),MATCH(OfficeVariances[[#Headers],[Sep]],OfficeActual[#Headers],0)) -> $200.00 | L17: =INDEX(OfficePlan[],MATCH(INDEX(OfficeVariances[],ROW()-ROW(OfficeVariances[[#Headers],[Oct]]),1),INDEX(OfficePlan[],,1),0),MATCH(OfficeVariances[[#Headers],[Oct]],OfficePlan[#Headers],0))-INDEX(OfficeActual[],MATCH(INDEX(OfficeVariances[],ROW()-ROW(OfficeVariances[[#Headers],[Oct]]),1),INDEX(OfficePlan[],,1),0),MATCH(OfficeVariances[[#Headers],[Oct]],OfficeActual[#Headers],0)) -> $200.00 | M17: =INDEX(OfficePlan[],MATCH(INDEX(OfficeVariances[],ROW()-ROW(OfficeVariances[[#Headers],[Nov]]),1),INDEX(OfficePlan[],,1),0),MATCH(OfficeVariances[[#Headers],[Nov]],OfficePlan[#Headers],0))-INDEX(OfficeActual[],MATCH(INDEX(OfficeVariances[],ROW()-ROW(OfficeVariances[[#Headers],[Nov]]),1),INDEX(OfficePlan[],,1),0),MATCH(OfficeVariances[[#Headers],[Nov]],OfficeActual[#Headers],0)) -> $200.00 | N17: =INDEX(OfficePlan[],MATCH(INDEX(OfficeVariances[],ROW()-ROW(OfficeVariances[[#Headers],[Dec]]),1),INDEX(OfficePlan[],,1),0),MATCH(OfficeVariances[[#Headers],[Dec]],OfficePlan[#Headers],0))-INDEX(OfficeActual[],MATCH(INDEX(OfficeVariances[],ROW()-ROW(OfficeVariances[[#Headers],[Dec]]),1),INDEX(OfficePlan[],,1),0),MATCH(OfficeVariances[[#Headers],[Dec]],OfficeActual[#Headers],0)) -> $200.00 | O17: =SUM(OfficeVariances[[#This Row],[Jan]:[Dec]]) -> $1,125.00
B18: Security | C18: =INDEX(OfficePlan[],MATCH(INDEX(OfficeVariances[],ROW()-ROW(OfficeVariances[[#Headers],[Jan]]),1),INDEX(OfficePlan[],,1),0),MATCH(OfficeVariances[[#Headers],[Jan]],OfficePlan[#Headers],0))-INDEX(OfficeActual[],MATCH(INDEX(OfficeVariances[],ROW()-ROW(OfficeVariances[[#Headers],[Jan]]),1),INDEX(OfficePlan[],,1),0),MATCH(OfficeVariances[[#Headers],[Jan]],OfficeActual[#Headers],0)) -> $0.00 | D18: =INDEX(OfficePlan[],MATCH(INDEX(OfficeVariances[],ROW()-ROW(OfficeVariances[[#Headers],[Feb]]),1),INDEX(OfficePlan[],,1),0),MATCH(OfficeVariances[[#Headers],[Feb]],OfficePlan[#Headers],0))-INDEX(OfficeActual[],MATCH(INDEX(OfficeVariances[],ROW()-ROW(OfficeVariances[[#Headers],[Feb]]),1),INDEX(OfficePlan[],,1),0),MATCH(OfficeVariances[[#Headers],[Feb]],OfficeActual[#Headers],0)) -> $0.00 | E18: =INDEX(OfficePlan[],MATCH(INDEX(OfficeVariances[],ROW()-ROW(OfficeVariances[[#Headers],[Mar]]),1),INDEX(OfficePlan[],,1),0),MATCH(OfficeVariances[[#Headers],[Mar]],OfficePlan[#Headers],0))-INDEX(OfficeActual[],MATCH(INDEX(OfficeVariances[],ROW()-ROW(OfficeVariances[[#Headers],[Mar]]),1),INDEX(OfficePlan[],,1),0),MATCH(OfficeVariances[[#Headers],[Mar]],OfficeActual[#Headers],0)) -> $0.00 | F18: =INDEX(OfficePlan[],MATCH(INDEX(OfficeVariances[],ROW()-ROW(OfficeVariances[[#Headers],[Apr]]),1),INDEX(OfficePlan[],,1),0),MATCH(OfficeVariances[[#Headers],[Apr]],OfficePlan[#Headers],0))-INDEX(OfficeActual[],MATCH(INDEX(OfficeVariances[],ROW()-ROW(OfficeVariances[[#Headers],[Apr]]),1),INDEX(OfficePlan[],,1),0),MATCH(OfficeVariances[[#Headers],[Apr]],OfficeActual[#Headers],0)) -> $0.00 | G18: =INDEX(OfficePlan[],MATCH(INDEX(OfficeVariances[],ROW()-ROW(OfficeVariances[[#Headers],[May]]),1),INDEX(OfficePlan[],,1),0),MATCH(OfficeVariances[[#Headers],[May]],OfficePlan[#Headers],0))-INDEX(OfficeActual[],MATCH(INDEX(OfficeVariances[],ROW()-ROW(OfficeVariances[[#Headers],[May]]),1),INDEX(OfficePlan[],,1),0),MATCH(OfficeVariances[[#Headers],[May]],OfficeActual[#Headers],0)) -> $0.00 | H18: =INDEX(OfficePlan[],MATCH(INDEX(OfficeVariances[],ROW()-ROW(OfficeVariances[[#Headers],[Jun]]),1),INDEX(OfficePlan[],,1),0),MATCH(OfficeVariances[[#Headers],[Jun]],OfficePlan[#Headers],0))-INDEX(OfficeActual[],MATCH(INDEX(OfficeVariances[],ROW()-ROW(OfficeVariances[[#Headers],[Jun]]),1),INDEX(OfficePlan[],,1),0),MATCH(OfficeVariances[[#Headers],[Jun]],OfficeActual[#Headers],0)) -> $0.00 | I18: =INDEX(OfficePlan[],MATCH(INDEX(OfficeVariances[],ROW()-ROW(OfficeVariances[[#Headers],[Jul]]),1),INDEX(OfficePlan[],,1),0),MATCH(OfficeVariances[[#Headers],[Jul]],OfficePlan[#Headers],0))-INDEX(OfficeActual[],MATCH(INDEX(OfficeVariances[],ROW()-ROW(OfficeVariances[[#Headers],[Jul]]),1),INDEX(OfficePlan[],,1),0),MATCH(OfficeVariances[[#Headers],[Jul]],OfficeActual[#Headers],0)) -> $600.00 | J18: =INDEX(OfficePlan[],MATCH(INDEX(OfficeVariances[],ROW()-ROW(OfficeVariances[[#Headers],[Aug]]),1),INDEX(OfficePlan[],,1),0),MATCH(OfficeVariances[[#Headers],[Aug]],OfficePlan[#Headers],0))-INDEX(OfficeActual[],MATCH(INDEX(OfficeVariances[],ROW()-ROW(OfficeVariances[[#Headers],[Aug]]),1),INDEX(OfficePlan[],,1),0),MATCH(OfficeVariances[[#Headers],[Aug]],OfficeActual[#Headers],0)) -> $600.00 | K18: =INDEX(OfficePlan[],MATCH(INDEX(OfficeVariances[],ROW()-ROW(OfficeVariances[[#Headers],[Sep]]),1),INDEX(OfficePlan[],,1),0),MATCH(OfficeVariances[[#Headers],[Sep]],OfficePlan[#Headers],0))-INDEX(OfficeActual[],MATCH(INDEX(OfficeVariances[],ROW()-ROW(OfficeVariances[[#Headers],[Sep]]),1),INDEX(OfficePlan[],,1),0),MATCH(OfficeVariances[[#Headers],[Sep]],OfficeActual[#Headers],0)) -> $600.00 | L18: =INDEX(OfficePlan[],MATCH(INDEX(OfficeVariances[],ROW()-ROW(OfficeVariances[[#Headers],[Oct]]),1),INDEX(OfficePlan[],,1),0),MATCH(OfficeVariances[[#Headers],[Oct]],OfficePlan[#Headers],0))-INDEX(OfficeActual[],MATCH(INDEX(OfficeVariances[],ROW()-ROW(OfficeVariances[[#Headers],[Oct]]),1),INDEX(OfficePlan[],,1),0),MATCH(OfficeVariances[[#Headers],[Oct]],OfficeActual[#Headers],0)) -> $600.00 | M18: =INDEX(OfficePlan[],MATCH(INDEX(OfficeVariances[],ROW()-ROW(OfficeVariances[[#Headers],[Nov]]),1),INDEX(OfficePlan[],,1),0),MATCH(OfficeVariances[[#Headers],[Nov]],OfficePlan[#Headers],0))-INDEX(OfficeActual[],MATCH(INDEX(OfficeVariances[],ROW()-ROW(OfficeVariances[[#Headers],[Nov]]),1),INDEX(OfficePlan[],,1),0),MATCH(OfficeVariances[[#Headers],[Nov]],OfficeActual[#Headers],0)) -> $600.00 | N18: =INDEX(OfficePlan[],MATCH(INDEX(OfficeVariances[],ROW()-ROW(OfficeVariances[[#Headers],[Dec]]),1),INDEX(OfficePlan[],,1),0),MATCH(OfficeVariances[[#Headers],[Dec]],OfficePlan[#Headers],0))-INDEX(OfficeActual[],MATCH(INDEX(OfficeVariances[],ROW()-ROW(OfficeVariances[[#Headers],[Dec]]),1),INDEX(OfficePlan[],,1),0),MATCH(OfficeVariances[[#Headers],[Dec]],OfficeActual[#Headers],0)) -> $600.00 | O18: =SUM(OfficeVariances[[#This Row],[Jan]:[Dec]]) -> $3,600.00
B19: Subtotal | C19: =SUBTOTAL(109,OfficeVariances[Jan]) -> ($17.00) | D19: =SUBTOTAL(109,OfficeVariances[Feb]) -> $72.00 | E19: =SUBTOTAL(109,OfficeVariances[Mar]) -> $78.00 | F19: =SUBTOTAL(109,OfficeVariances[Apr]) -> ($141.00) | G19: =SUBTOTAL(109,OfficeVariances[May]) -> ($38.00) | H19: =SUBTOTAL(109,OfficeVariances[Jun]) -> $16.00 | I19: =SUBTOTAL(109,OfficeVariances[Jul]) -> $11,470.00 | J19: =SUBTOTAL(109,OfficeVariances[Aug]) -> $11,470.00 | K19: =SUBTOTAL(109,OfficeVariances[Sep]) -> $11,470.00 | L19: =SUBTOTAL(109,OfficeVariances[Oct]) -> $11,470.00 | M19: =SUBTOTAL(109,OfficeVariances[Nov]) -> $11,770.00 | N19: =SUBTOTAL(109,OfficeVariances[Dec]) -> $11,770.00 | O19: =SUBTOTAL(109,OfficeVariances[YEAR]) -> $69,390.00
A21: Variance in Marketing Costs is auto calculated in Marketing Variances table starting in cell at right. Next instruction is in cell A30. | B21: Marketing Costs | C21: Jan | D21: Feb | E21: Mar | F21: Apr | G21: May | H21: Jun | I21: Jul | J21: Aug | K21: Sep | L21: Oct | M21: Nov | N21: Dec | O21: YEAR
B22: Web site hosting | C22: =INDEX(MarketingPlan[],MATCH(INDEX(MarketingVariances[],ROW()-ROW(MarketingVariances[[#Headers],[Jan]]),1),INDEX(MarketingPlan[],,1),0),MATCH(MarketingVariances[[#Headers],[Jan]],MarketingPlan[#Headers],0))-INDEX(MarketingActual[],MATCH(INDEX(MarketingVariances[],ROW()-ROW(MarketingVariances[[#Headers],[Jan]]),1),INDEX(MarketingPlan[],,1),0),MATCH(MarketingVariances[[#Headers],[Jan]],MarketingActual[#Headers],0)) -> $0.00 | D22: =INDEX(MarketingPlan[],MATCH(INDEX(MarketingVariances[],ROW()-ROW(MarketingVariances[[#Headers],[Feb]]),1),INDEX(MarketingPlan[],,1),0),MATCH(MarketingVariances[[#Headers],[Feb]],MarketingPlan[#Headers],0))-INDEX(MarketingActual[],MATCH(INDEX(MarketingVariances[],ROW()-ROW(MarketingVariances[[#Headers],[Feb]]),1),INDEX(MarketingPlan[],,1),0),MATCH(MarketingVariances[[#Headers],[Feb]],MarketingActual[#Headers],0)) -> $0.00 | E22: =INDEX(MarketingPlan[],MATCH(INDEX(MarketingVariances[],ROW()-ROW(MarketingVariances[[#Headers],[Mar]]),1),INDEX(MarketingPlan[],,1),0),MATCH(MarketingVariances[[#Headers],[Mar]],MarketingPlan[#Headers],0))-INDEX(MarketingActual[],MATCH(INDEX(MarketingVariances[],ROW()-ROW(MarketingVariances[[#Headers],[Mar]]),1),INDEX(MarketingPlan[],,1),0),MATCH(MarketingVariances[[#Headers],[Mar]],MarketingActual[#Headers],0)) -> $0.00 | F22: =INDEX(MarketingPlan[],MATCH(INDEX(MarketingVariances[],ROW()-ROW(MarketingVariances[[#Headers],[Apr]]),1),INDEX(MarketingPlan[],,1),0),MATCH(MarketingVariances[[#Headers],[Apr]],MarketingPlan[#Headers],0))-INDEX(MarketingActual[],MATCH(INDEX(MarketingVariances[],ROW()-ROW(MarketingVariances[[#Headers],[Apr]]),1),INDEX(MarketingPlan[],,1),0),MATCH(MarketingVariances[[#Headers],[Apr]],MarketingActual[#Headers],0)) -> $0.00 | G22: =INDEX(MarketingPlan[],MATCH(INDEX(MarketingVariances[],ROW()-ROW(MarketingVariances[[#Headers],[May]]),1),INDEX(MarketingPlan[],,1),0),MATCH(MarketingVariances[[#Headers],[May]],MarketingPlan[#Headers],0))-INDEX(MarketingActual[],MATCH(INDEX(MarketingVariances[],ROW()-ROW(MarketingVariances[[#Headers],[May]]),1),INDEX(MarketingPlan[],,1),0),MATCH(MarketingVariances[[#Headers],[May]],MarketingActual[#Headers],0)) -> $0.00 | H22: =INDEX(MarketingPlan[],MATCH(INDEX(MarketingVariances[],ROW()-ROW(MarketingVariances[[#Headers],[Jun]]),1),INDEX(MarketingPlan[],,1),0),MATCH(MarketingVariances[[#Headers],[Jun]],MarketingPlan[#Headers],0))-INDEX(MarketingActual[],MATCH(INDEX(MarketingVariances[],ROW()-ROW(MarketingVariances[[#Headers],[Jun]]),1),INDEX(MarketingPlan[],,1),0),MATCH(MarketingVariances[[#Headers],[Jun]],MarketingActual[#Headers],0)) -> $0.00 | I22: =INDEX(MarketingPlan[],MATCH(INDEX(MarketingVariances[],ROW()-ROW(MarketingVariances[[#Headers],[Jul]]),1),INDEX(MarketingPlan[],,1),0),MATCH(MarketingVariances[[#Headers],[Jul]],MarketingPlan[#Headers],0))-INDEX(MarketingActual[],MATCH(INDEX(MarketingVariances[],ROW()-ROW(MarketingVariances[[#Headers],[Jul]]),1),INDEX(MarketingPlan[],,1),0),MATCH(MarketingVariances[[#Headers],[Jul]],MarketingActual[#Headers],0)) -> $500.00 | J22: =INDEX(MarketingPlan[],MATCH(INDEX(MarketingVariances[],ROW()-ROW(MarketingVariances[[#Headers],[Aug]]),1),INDEX(MarketingPlan[],,1),0),MATCH(MarketingVariances[[#Headers],[Aug]],MarketingPlan[#Headers],0))-INDEX(MarketingActual[],MATCH(INDEX(MarketingVariances[],ROW()-ROW(MarketingVariances[[#Headers],[Aug]]),1),INDEX(MarketingPlan[],,1),0),MATCH(MarketingVariances[[#Headers],[Aug]],MarketingActual[#Headers],0)) -> $500.00 | K22: =INDEX(MarketingPlan[],MATCH(INDEX(MarketingVariances[],ROW()-ROW(MarketingVariances[[#Headers],[Sep]]),1),INDEX(MarketingPlan[],,1),0),MATCH(MarketingVariances[[#Headers],[Sep]],MarketingPlan[#Headers],0))-INDEX(MarketingActual[],MATCH(INDEX(MarketingVariances[],ROW()-ROW(MarketingVariances[[#Headers],[Sep]]),1),INDEX(MarketingPlan[],,1),0),MATCH(MarketingVariances[[#Headers],[Sep]],MarketingActual[#Headers],0)) -> $500.00 | L22: =INDEX(MarketingPlan[],MATCH(INDEX(MarketingVariances[],ROW()-ROW(MarketingVariances[[#Headers],[Oct]]),1),INDEX(MarketingPlan[],,1),0),MATCH(MarketingVariances[[#Headers],[Oct]],MarketingPlan[#Headers],0))-INDEX(MarketingActual[],MATCH(INDEX(MarketingVariances[],ROW()-ROW(MarketingVariances[[#Headers],[Oct]]),1),INDEX(MarketingPlan[],,1),0),MATCH(MarketingVariances[[#Headers],[Oct]],MarketingActual[#Headers],0)) -> $500.00 | M22: =INDEX(MarketingPlan[],MATCH(INDEX(MarketingVariances[],ROW()-ROW(MarketingVariances[[#Headers],[Nov]]),1),INDEX(MarketingPlan[],,1),0),MATCH(MarketingVariances[[#Headers],[Nov]],MarketingPlan[#Headers],0))-INDEX(MarketingActual[],MATCH(INDEX(MarketingVariances[],ROW()-ROW(MarketingVariances[[#Headers],[Nov]]),1),INDEX(MarketingPlan[],,1),0),MATCH(MarketingVariances[[#Headers],[Nov]],MarketingActual[#Headers],0)) -> $500.00 | N22: =INDEX(MarketingPlan[],MATCH(INDEX(MarketingVariances[],ROW()-ROW(MarketingVariances[[#Headers],[Dec]]),1),INDEX(MarketingPlan[],,1),0),MATCH(MarketingVariances[[#Headers],[Dec]],MarketingPlan[#Headers],0))-INDEX(MarketingActual[],MATCH(INDEX(MarketingVariances[],ROW()-ROW(MarketingVariances[[#Headers],[Dec]]),1),INDEX(MarketingPlan[],,1),0),MATCH(MarketingVariances[[#Headers],[Dec]],MarketingActual[#Headers],0)) -> $500.00 | O22: =SUM(MarketingVariances[[#This Row],[Jan]:[Dec]]) -> $3,000.00
B23: Web site updates | C23: =INDEX(MarketingPlan[],MATCH(INDEX(MarketingVariances[],ROW()-ROW(MarketingVariances[[#Headers],[Jan]]),1),INDEX(MarketingPlan[],,1),0),MATCH(MarketingVariances[[#Headers],[Jan]],MarketingPlan[#Headers],0))-INDEX(MarketingActual[],MATCH(INDEX(MarketingVariances[],ROW()-ROW(MarketingVariances[[#Headers],[Jan]]),1),INDEX(MarketingPlan[],,1),0),MATCH(MarketingVariances[[#Headers],[Jan]],MarketingActual[#Headers],0)) -> $0.00 | D23: =INDEX(MarketingPlan[],MATCH(INDEX(MarketingVariances[],ROW()-ROW(MarketingVariances[[#Headers],[Feb]]),1),INDEX(MarketingPlan[],,1),0),MATCH(MarketingVariances[[#Headers],[Feb]],MarketingPlan[#Headers],0))-INDEX(MarketingActual[],MATCH(INDEX(MarketingVariances[],ROW()-ROW(MarketingVariances[[#Headers],[Feb]]),1),INDEX(MarketingPlan[],,1),0),MATCH(MarketingVariances[[#Headers],[Feb]],MarketingActual[#Headers],0)) -> $0.00 | E23: =INDEX(MarketingPlan[],MATCH(INDEX(MarketingVariances[],ROW()-ROW(MarketingVariances[[#Headers],[Mar]]),1),INDEX(MarketingPlan[],,1),0),MATCH(MarketingVariances[[#Headers],[Mar]],MarketingPlan[#Headers],0))-INDEX(MarketingActual[],MATCH(INDEX(MarketingVariances[],ROW()-ROW(MarketingVariances[[#Headers],[Mar]]),1),INDEX(MarketingPlan[],,1),0),MATCH(MarketingVariances[[#Headers],[Mar]],MarketingActual[#Headers],0)) -> $0.00 | F23: =INDEX(MarketingPlan[],MATCH(INDEX(MarketingVariances[],ROW()-ROW(MarketingVariances[[#Headers],[Apr]]),1),INDEX(MarketingPlan[],,1),0),MATCH(MarketingVariances[[#Headers],[Apr]],MarketingPlan[#Headers],0))-INDEX(MarketingActual[],MATCH(INDEX(MarketingVariances[],ROW()-ROW(MarketingVariances[[#Headers],[Apr]]),1),INDEX(MarketingPlan[],,1),0),MATCH(MarketingVariances[[#Headers],[Apr]],MarketingActual[#Headers],0)) -> $0.00 | G23: =INDEX(MarketingPlan[],MATCH(INDEX(MarketingVariances[],ROW()-ROW(MarketingVariances[[#Headers],[May]]),1),INDEX(MarketingPlan[],,1),0),MATCH(MarketingVariances[[#Headers],[May]],MarketingPlan[#Headers],0))-INDEX(MarketingActual[],MATCH(INDEX(MarketingVariances[],ROW()-ROW(MarketingVariances[[#Headers],[May]]),1),INDEX(MarketingPlan[],,1),0),MATCH(MarketingVariances[[#Headers],[May]],MarketingActual[#Headers],0)) -> $0.00 | H23: =INDEX(MarketingPlan[],MATCH(INDEX(MarketingVariances[],ROW()-ROW(MarketingVariances[[#Headers],[Jun]]),1),INDEX(MarketingPlan[],,1),0),MATCH(MarketingVariances[[#Headers],[Jun]],MarketingPlan[#Headers],0))-INDEX(MarketingActual[],MATCH(INDEX(MarketingVariances[],ROW()-ROW(MarketingVariances[[#Headers],[Jun]]),1),INDEX(MarketingPlan[],,1),0),MATCH(MarketingVariances[[#Headers],[Jun]],MarketingActual[#Headers],0)) -> ($500.00) | I23: =INDEX(MarketingPlan[],MATCH(INDEX(MarketingVariances[],ROW()-ROW(MarketingVariances[[#Headers],[Jul]]),1),INDEX(MarketingPlan[],,1),0),MATCH(MarketingVariances[[#Headers],[Jul]],MarketingPlan[#Headers],0))-INDEX(MarketingActual[],MATCH(INDEX(MarketingVariances[],ROW()-ROW(MarketingVariances[[#Headers],[Jul]]),1),INDEX(MarketingPlan[],,1),0),MATCH(MarketingVariances[[#Headers],[Jul]],MarketingActual[#Headers],0)) -> $200.00 | J23: =INDEX(MarketingPlan[],MATCH(INDEX(MarketingVariances[],ROW()-ROW(MarketingVariances[[#Headers],[Aug]]),1),INDEX(MarketingPlan[],,1),0),MATCH(MarketingVariances[[#Headers],[Aug]],MarketingPlan[#Headers],0))-INDEX(MarketingActual[],MATCH(INDEX(MarketingVariances[],ROW()-ROW(MarketingVariances[[#Headers],[Aug]]),1),INDEX(MarketingPlan[],,1),0),MATCH(MarketingVariances[[#Headers],[Aug]],MarketingActual[#Headers],0)) -> $200.00 | K23: =INDEX(MarketingPlan[],MATCH(INDEX(MarketingVariances[],ROW()-ROW(MarketingVariances[[#Headers],[Sep]]),1),INDEX(MarketingPlan[],,1),0),MATCH(MarketingVariances[[#Headers],[Sep]],MarketingPlan[#Headers],0))-INDEX(MarketingActual[],MATCH(INDEX(MarketingVariances[],ROW()-ROW(MarketingVariances[[#Headers],[Sep]]),1),INDEX(MarketingPlan[],,1),0),MATCH(MarketingVariances[[#Headers],[Sep]],MarketingActual[#Headers],0)) -> $200.00 | L23: =INDEX(MarketingPlan[],MATCH(INDEX(MarketingVariances[],ROW()-ROW(MarketingVariances[[#Headers],[Oct]]),1),INDEX(MarketingPlan[],,1),0),MATCH(MarketingVariances[[#Headers],[Oct]],MarketingPlan[#Headers],0))-INDEX(MarketingActual[],MATCH(INDEX(MarketingVariances[],ROW()-ROW(MarketingVariances[[#Headers],[Oct]]),1),INDEX(MarketingPlan[],,1),0),MATCH(MarketingVariances[[#Headers],[Oct]],MarketingActual[#Headers],0)) -> $200.00 | M23: =INDEX(MarketingPlan[],MATCH(INDEX(MarketingVariances[],ROW()-ROW(MarketingVariances[[#Headers],[Nov]]),1),INDEX(MarketingPlan[],,1),0),MATCH(MarketingVariances[[#Headers],[Nov]],MarketingPlan[#Headers],0))-INDEX(MarketingActual[],MATCH(INDEX(MarketingVariances[],ROW()-ROW(MarketingVariances[[#Headers],[Nov]]),1),INDEX(MarketingPlan[],,1),0),MATCH(MarketingVariances[[#Headers],[Nov]],MarketingActual[#Headers],0)) -> $200.00 | N23: =INDEX(MarketingPlan[],MATCH(INDEX(MarketingVariances[],ROW()-ROW(MarketingVariances[[#Headers],[Dec]]),1),INDEX(MarketingPlan[],,1),0),MATCH(MarketingVariances[[#Headers],[Dec]],MarketingPlan[#Headers],0))-INDEX(MarketingActual[],MATCH(INDEX(MarketingVariances[],ROW()-ROW(MarketingVariances[[#Headers],[Dec]]),1),INDEX(MarketingPlan[],,1),0),MATCH(MarketingVariances[[#Headers],[Dec]],MarketingActual[#Headers],0)) -> $1,000.00 | O23: =SUM(MarketingVariances[[#This Row],[Jan]:[Dec]]) -> $1,500.00
B24: Collateral preparation | C24: =INDEX(MarketingPlan[],MATCH(INDEX(MarketingVariances[],ROW()-ROW(MarketingVariances[[#Headers],[Jan]]),1),INDEX(MarketingPlan[],,1),0),MATCH(MarketingVariances[[#Headers],[Jan]],MarketingPlan[#Headers],0))-INDEX(MarketingActual[],MATCH(INDEX(MarketingVariances[],ROW()-ROW(MarketingVariances[[#Headers],[Jan]]),1),INDEX(MarketingPlan[],,1),0),MATCH(MarketingVariances[[#Headers],[Jan]],MarketingActual[#Headers],0)) -> $200.00 | D24: =INDEX(MarketingPlan[],MATCH(INDEX(MarketingVariances[],ROW()-ROW(MarketingVariances[[#Headers],[Feb]]),1),INDEX(MarketingPlan[],,1),0),MATCH(MarketingVariances[[#Headers],[Feb]],MarketingPlan[#Headers],0))-INDEX(MarketingActual[],MATCH(INDEX(MarketingVariances[],ROW()-ROW(MarketingVariances[[#Headers],[Feb]]),1),INDEX(MarketingPlan[],,1),0),MATCH(MarketingVariances[[#Headers],[Feb]],MarketingActual[#Headers],0)) -> $0.00 | E24: =INDEX(MarketingPlan[],MATCH(INDEX(MarketingVariances[],ROW()-ROW(MarketingVariances[[#Headers],[Mar]]),1),INDEX(MarketingPlan[],,1),0),MATCH(MarketingVariances[[#Headers],[Mar]],MarketingPlan[#Headers],0))-INDEX(MarketingActual[],MATCH(INDEX(MarketingVariances[],ROW()-ROW(MarketingVariances[[#Headers],[Mar]]),1),INDEX(MarketingPlan[],,1),0),MATCH(MarketingVariances[[#Headers],[Mar]],MarketingActual[#Headers],0)) -> $0.00 | F24: =INDEX(MarketingPlan[],MATCH(INDEX(MarketingVariances[],ROW()-ROW(MarketingVariances[[#Headers],[Apr]]),1),INDEX(MarketingPlan[],,1),0),MATCH(MarketingVariances[[#Headers],[Apr]],MarketingPlan[#Headers],0))-INDEX(MarketingActual[],MATCH(INDEX(MarketingVariances[],ROW()-ROW(MarketingVariances[[#Headers],[Apr]]),1),INDEX(MarketingPlan[],,1),0),MATCH(MarketingVariances[[#Headers],[Apr]],MarketingActual[#Headers],0)) -> ($500.00) | G24: =INDEX(MarketingPlan[],MATCH(INDEX(MarketingVariances[],ROW()-ROW(MarketingVariances[[#Headers],[May]]),1),INDEX(MarketingPlan[],,1),0),MATCH(MarketingVariances[[#Headers],[May]],MarketingPlan[#Headers],0))-INDEX(MarketingActual[],MATCH(INDEX(MarketingVariances[],ROW()-ROW(MarketingVariances[[#Headers],[May]]),1),INDEX(MarketingPlan[],,1),0),MATCH(MarketingVariances[[#Headers],[May]],MarketingActual[#Headers],0)) -> $0.00 | H24: =INDEX(MarketingPlan[],MATCH(INDEX(MarketingVariances[],ROW()-ROW(MarketingVariances[[#Headers],[Jun]]),1),INDEX(MarketingPlan[],,1),0),MATCH(MarketingVariances[[#Headers],[Jun]],MarketingPlan[#Headers],0))-INDEX(MarketingActual[],MATCH(INDEX(MarketingVariances[],ROW()-ROW(MarketingVariances[[#Headers],[Jun]]),1),INDEX(MarketingPlan[],,1),0),MATCH(MarketingVariances[[#Headers],[Jun]],MarketingActual[#Headers],0)) -> $0.00 | I24: =INDEX(MarketingPlan[],MATCH(INDEX(MarketingVariances[],ROW()-ROW(MarketingVariances[[#Headers],[Jul]]),1),INDEX(MarketingPlan[],,1),0),MATCH(MarketingVariances[[#Headers],[Jul]],MarketingPlan[#Headers],0))-INDEX(MarketingActual[],MATCH(INDEX(MarketingVariances[],ROW()-ROW(MarketingVariances[[#Headers],[Jul]]),1),INDEX(MarketingPlan[],,1),0),MATCH(MarketingVariances[[#Headers],[Jul]],MarketingActual[#Headers],0)) -> $5,000.00 | J24: =INDEX(MarketingPlan[],MATCH(INDEX(MarketingVariances[],ROW()-ROW(MarketingVariances[[#Headers],[Aug]]),1),INDEX(MarketingPlan[],,1),0),MATCH(MarketingVariances[[#Headers],[Aug]],MarketingPlan[#Headers],0))-INDEX(MarketingActual[],MATCH(INDEX(MarketingVariances[],ROW()-ROW(MarketingVariances[[#Headers],[Aug]]),1),INDEX(MarketingPlan[],,1),0),MATCH(MarketingVariances[[#Headers],[Aug]],MarketingActual[#Headers],0)) -> $0.00 | K24: =INDEX(MarketingPlan[],MATCH(INDEX(MarketingVariances[],ROW()-ROW(MarketingVariances[[#Headers],[Sep]]),1),INDEX(MarketingPlan[],,1),0),MATCH(MarketingVariances[[#Headers],[Sep]],MarketingPlan[#Headers],0))-INDEX(MarketingActual[],MATCH(INDEX(MarketingVariances[],ROW()-ROW(MarketingVariances[[#Headers],[Sep]]),1),INDEX(MarketingPlan[],,1),0),MATCH(MarketingVariances[[#Headers],[Sep]],MarketingActual[#Headers],0)) -> $0.00 | L24: =INDEX(MarketingPlan[],MATCH(INDEX(MarketingVariances[],ROW()-ROW(MarketingVariances[[#Headers],[Oct]]),1),INDEX(MarketingPlan[],,1),0),MATCH(MarketingVariances[[#Headers],[Oct]],MarketingPlan[#Headers],0))-INDEX(MarketingActual[],MATCH(INDEX(MarketingVariances[],ROW()-ROW(MarketingVariances[[#Headers],[Oct]]),1),INDEX(MarketingPlan[],,1),0),MATCH(MarketingVariances[[#Headers],[Oct]],MarketingActual[#Headers],0)) -> $5,000.00 | M24: =INDEX(MarketingPlan[],MATCH(INDEX(MarketingVariances[],ROW()-ROW(MarketingVariances[[#Headers],[Nov]]),1),INDEX(MarketingPlan[],,1),0),MATCH(MarketingVariances[[#Headers],[Nov]],MarketingPlan[#Headers],0))-INDEX(MarketingActual[],MATCH(INDEX(MarketingVariances[],ROW()-ROW(MarketingVariances[[#Headers],[Nov]]),1),INDEX(MarketingPlan[],,1),0),MATCH(MarketingVariances[[#Headers],[Nov]],MarketingActual[#Headers],0)) -> $0.00 | N24: =INDEX(MarketingPlan[],MATCH(INDEX(MarketingVariances[],ROW()-ROW(MarketingVariances[[#Headers],[Dec]]),1),INDEX(MarketingPlan[],,1),0),MATCH(MarketingVariances[[#Headers],[Dec]],MarketingPlan[#Headers],0))-INDEX(MarketingActual[],MATCH(INDEX(MarketingVariances[],ROW()-ROW(MarketingVariances[[#Headers],[Dec]]),1),INDEX(MarketingPlan[],,1),0),MATCH(MarketingVariances[[#Headers],[Dec]],MarketingActual[#Headers],0)) -> $0.00 | O24: =SUM(MarketingVariances[[#This Row],[Jan]:[Dec]]) -> $9,700.00
B25: Collateral printing | C25: =INDEX(MarketingPlan[],MATCH(INDEX(MarketingVariances[],ROW()-ROW(MarketingVariances[[#Headers],[Jan]]),1),INDEX(MarketingPlan[],,1),0),MATCH(MarketingVariances[[#Headers],[Jan]],MarketingPlan[#Headers],0))-INDEX(MarketingActual[],MATCH(INDEX(MarketingVariances[],ROW()-ROW(MarketingVariances[[#Headers],[Jan]]),1),INDEX(MarketingPlan[],,1),0),MATCH(MarketingVariances[[#Headers],[Jan]],MarketingActual[#Headers],0)) -> $100.00 | D25: =INDEX(MarketingPlan[],MATCH(INDEX(MarketingVariances[],ROW()-ROW(MarketingVariances[[#Headers],[Feb]]),1),INDEX(MarketingPlan[],,1),0),MATCH(MarketingVariances[[#Headers],[Feb]],MarketingPlan[#Headers],0))-INDEX(MarketingActual[],MATCH(INDEX(MarketingVariances[],ROW()-ROW(MarketingVariances[[#Headers],[Feb]]),1),INDEX(MarketingPlan[],,1),0),MATCH(MarketingVariances[[#Headers],[Feb]],MarketingActual[#Headers],0)) -> ($300.00) | E25: =INDEX(MarketingPlan[],MATCH(INDEX(MarketingVariances[],ROW()-ROW(MarketingVariances[[#Headers],[Mar]]),1),INDEX(MarketingPlan[],,1),0),MATCH(MarketingVariances[[#Headers],[Mar]],MarketingPlan[#Headers],0))-INDEX(MarketingActual[],MATCH(INDEX(MarketingVariances[],ROW()-ROW(MarketingVariances[[#Headers],[Mar]]),1),INDEX(MarketingPlan[],,1),0),MATCH(MarketingVariances[[#Headers],[Mar]],MarketingActual[#Headers],0)) -> $100.00 | F25: =INDEX(MarketingPlan[],MATCH(INDEX(MarketingVariances[],ROW()-ROW(MarketingVariances[[#Headers],[Apr]]),1),INDEX(MarketingPlan[],,1),0),MATCH(MarketingVariances[[#Headers],[Apr]],MarketingPlan[#Headers],0))-INDEX(MarketingActual[],MATCH(INDEX(MarketingVariances[],ROW()-ROW(MarketingVariances[[#Headers],[Apr]]),1),INDEX(MarketingPlan[],,1),0),MATCH(MarketingVariances[[#Headers],[Apr]],MarketingActual[#Headers],0)) -> $100.00 | G25: =INDEX(MarketingPlan[],MATCH(INDEX(MarketingVariances[],ROW()-ROW(MarketingVariances[[#Headers],[May]]),1),INDEX(MarketingPlan[],,1),0),MATCH(MarketingVariances[[#Headers],[May]],MarketingPlan[#Headers],0))-INDEX(MarketingActual[],MATCH(INDEX(MarketingVariances[],ROW()-ROW(MarketingVariances[[#Headers],[May]]),1),INDEX(MarketingPlan[],,1),0),MATCH(MarketingVariances[[#Headers],[May]],MarketingActual[#Headers],0)) -> ($400.00) | H25: =INDEX(MarketingPlan[],MATCH(INDEX(MarketingVariances[],ROW()-ROW(MarketingVariances[[#Headers],[Jun]]),1),INDEX(MarketingPlan[],,1),0),MATCH(MarketingVariances[[#Headers],[Jun]],MarketingPlan[#Headers],0))-INDEX(MarketingActual[],MATCH(INDEX(MarketingVariances[],ROW()-ROW(MarketingVariances[[#Headers],[Jun]]),1),INDEX(MarketingPlan[],,1),0),MATCH(MarketingVariances[[#Headers],[Jun]],MarketingActual[#Headers],0)) -> $20.00 | I25: =INDEX(MarketingPlan[],MATCH(INDEX(MarketingVariances[],ROW()-ROW(MarketingVariances[[#Headers],[Jul]]),1),INDEX(MarketingPlan[],,1),0),MATCH(MarketingVariances[[#Headers],[Jul]],MarketingPlan[#Headers],0))-INDEX(MarketingActual[],MATCH(INDEX(MarketingVariances[],ROW()-ROW(MarketingVariances[[#Headers],[Jul]]),1),INDEX(MarketingPlan[],,1),0),MATCH(MarketingVariances[[#Headers],[Jul]],MarketingActual[#Headers],0)) -> $200.00 | J25: =INDEX(MarketingPlan[],MATCH(INDEX(MarketingVariances[],ROW()-ROW(MarketingVariances[[#Headers],[Aug]]),1),INDEX(MarketingPlan[],,1),0),MATCH(MarketingVariances[[#Headers],[Aug]],MarketingPlan[#Headers],0))-INDEX(MarketingActual[],MATCH(INDEX(MarketingVariances[],ROW()-ROW(MarketingVariances[[#Headers],[Aug]]),1),INDEX(MarketingPlan[],,1),0),MATCH(MarketingVariances[[#Headers],[Aug]],MarketingActual[#Headers],0)) -> $200.00 | K25: =INDEX(MarketingPlan[],MATCH(INDEX(MarketingVariances[],ROW()-ROW(MarketingVariances[[#Headers],[Sep]]),1),INDEX(MarketingPlan[],,1),0),MATCH(MarketingVariances[[#Headers],[Sep]],MarketingPlan[#Headers],0))-INDEX(MarketingActual[],MATCH(INDEX(MarketingVariances[],ROW()-ROW(MarketingVariances[[#Headers],[Sep]]),1),INDEX(MarketingPlan[],,1),0),MATCH(MarketingVariances[[#Headers],[Sep]],MarketingActual[#Headers],0)) -> $200.00 | L25: =INDEX(MarketingPlan[],MATCH(INDEX(MarketingVariances[],ROW()-ROW(MarketingVariances[[#Headers],[Oct]]),1),INDEX(MarketingPlan[],,1),0),MATCH(MarketingVariances[[#Headers],[Oct]],MarketingPlan[#Headers],0))-INDEX(MarketingActual[],MATCH(INDEX(MarketingVariances[],ROW()-ROW(MarketingVariances[[#Headers],[Oct]]),1),INDEX(MarketingPlan[],,1),0),MATCH(MarketingVariances[[#Headers],[Oct]],MarketingActual[#Headers],0)) -> $200.00 | M25: =INDEX(MarketingPlan[],MATCH(INDEX(MarketingVariances[],ROW()-ROW(MarketingVariances[[#Headers],[Nov]]),1),INDEX(MarketingPlan[],,1),0),MATCH(MarketingVariances[[#Headers],[Nov]],MarketingPlan[#Headers],0))-INDEX(MarketingActual[],MATCH(INDEX(MarketingVariances[],ROW()-ROW(MarketingVariances[[#Headers],[Nov]]),1),INDEX(MarketingPlan[],,1),0),MATCH(MarketingVariances[[#Headers],[Nov]],MarketingActual[#Headers],0)) -> $200.00 | N25: =INDEX(MarketingPlan[],MATCH(INDEX(MarketingVariances[],ROW()-ROW(MarketingVariances[[#Headers],[Dec]]),1),INDEX(MarketingPlan[],,1),0),MATCH(MarketingVariances[[#Headers],[Dec]],MarketingPlan[#Headers],0))-INDEX(MarketingActual[],MATCH(INDEX(MarketingVariances[],ROW()-ROW(MarketingVariances[[#Headers],[Dec]]),1),INDEX(MarketingPlan[],,1),0),MATCH(MarketingVariances[[#Headers],[Dec]],MarketingActual[#Headers],0)) -> $200.00 | O25: =SUM(MarketingVariances[[#This Row],[Jan]:[Dec]]) -> $820.00
B26: Marketing events | C26: =INDEX(MarketingPlan[],MATCH(INDEX(MarketingVariances[],ROW()-ROW(MarketingVariances[[#Headers],[Jan]]),1),INDEX(MarketingPlan[],,1),0),MATCH(MarketingVariances[[#Headers],[Jan]],MarketingPlan[#Headers],0))-INDEX(MarketingActual[],MATCH(INDEX(MarketingVariances[],ROW()-ROW(MarketingVariances[[#Headers],[Jan]]),1),INDEX(MarketingPlan[],,1),0),MATCH(MarketingVariances[[#Headers],[Jan]],MarketingActual[#Headers],0)) -> $200.00 | D26: =INDEX(MarketingPlan[],MATCH(INDEX(MarketingVariances[],ROW()-ROW(MarketingVariances[[#Headers],[Feb]]),1),INDEX(MarketingPlan[],,1),0),MATCH(MarketingVariances[[#Headers],[Feb]],MarketingPlan[#Headers],0))-INDEX(MarketingActual[],MATCH(INDEX(MarketingVariances[],ROW()-ROW(MarketingVariances[[#Headers],[Feb]]),1),INDEX(MarketingPlan[],,1),0),MATCH(MarketingVariances[[#Headers],[Feb]],MarketingActual[#Headers],0)) -> ($200.00) | E26: =INDEX(MarketingPlan[],MATCH(INDEX(MarketingVariances[],ROW()-ROW(MarketingVariances[[#Headers],[Mar]]),1),INDEX(MarketingPlan[],,1),0),MATCH(MarketingVariances[[#Headers],[Mar]],MarketingPlan[#Headers],0))-INDEX(MarketingActual[],MATCH(INDEX(MarketingVariances[],ROW()-ROW(MarketingVariances[[#Headers],[Mar]]),1),INDEX(MarketingPlan[],,1),0),MATCH(MarketingVariances[[#Headers],[Mar]],MarketingActual[#Headers],0)) -> ($200.00) | F26: =INDEX(MarketingPlan[],MATCH(INDEX(MarketingVariances[],ROW()-ROW(MarketingVariances[[#Headers],[Apr]]),1),INDEX(MarketingPlan[],,1),0),MATCH(MarketingVariances[[#Headers],[Apr]],MarketingPlan[#Headers],0))-INDEX(MarketingActual[],MATCH(INDEX(MarketingVariances[],ROW()-ROW(MarketingVariances[[#Headers],[Apr]]),1),INDEX(MarketingPlan[],,1),0),MATCH(MarketingVariances[[#Headers],[Apr]],MarketingActual[#Headers],0)) -> $300.00 | G26: =INDEX(MarketingPlan[],MATCH(INDEX(MarketingVariances[],ROW()-ROW(MarketingVariances[[#Headers],[May]]),1),INDEX(MarketingPlan[],,1),0),MATCH(MarketingVariances[[#Headers],[May]],MarketingPlan[#Headers],0))-INDEX(MarketingActual[],MATCH(INDEX(MarketingVariances[],ROW()-ROW(MarketingVariances[[#Headers],[May]]),1),INDEX(MarketingPlan[],,1),0),MATCH(MarketingVariances[[#Headers],[May]],MarketingActual[#Headers],0)) -> $500.00 | H26: =INDEX(MarketingPlan[],MATCH(INDEX(MarketingVariances[],ROW()-ROW(MarketingVariances[[#Headers],[Jun]]),1),INDEX(MarketingPlan[],,1),0),MATCH(MarketingVariances[[#Headers],[Jun]],MarketingPlan[#Headers],0))-INDEX(MarketingActual[],MATCH(INDEX(MarketingVariances[],ROW()-ROW(MarketingVariances[[#Headers],[Jun]]),1),INDEX(MarketingPlan[],,1),0),MATCH(MarketingVariances[[#Headers],[Jun]],MarketingActual[#Headers],0)) -> ($300.00) | I26: =INDEX(MarketingPlan[],MATCH(INDEX(MarketingVariances[],ROW()-ROW(MarketingVariances[[#Headers],[Jul]]),1),INDEX(MarketingPlan[],,1),0),MATCH(MarketingVariances[[#Headers],[Jul]],MarketingPlan[#Headers],0))-INDEX(MarketingActual[],MATCH(INDEX(MarketingVariances[],ROW()-ROW(MarketingVariances[[#Headers],[Jul]]),1),INDEX(MarketingPlan[],,1),0),MATCH(MarketingVariances[[#Headers],[Jul]],MarketingActual[#Headers],0)) -> $2,000.00 | J26: =INDEX(MarketingPlan[],MATCH(INDEX(MarketingVariances[],ROW()-ROW(MarketingVariances[[#Headers],[Aug]]),1),INDEX(MarketingPlan[],,1),0),MATCH(MarketingVariances[[#Headers],[Aug]],MarketingPlan[#Headers],0))-INDEX(MarketingActual[],MATCH(INDEX(MarketingVariances[],ROW()-ROW(MarketingVariances[[#Headers],[Aug]]),1),INDEX(MarketingPlan[],,1),0),MATCH(MarketingVariances[[#Headers],[Aug]],MarketingActual[#Headers],0)) -> $5,000.00 | K26: =INDEX(MarketingPlan[],MATCH(INDEX(MarketingVariances[],ROW()-ROW(MarketingVariances[[#Headers],[Sep]]),1),INDEX(MarketingPlan[],,1),0),MATCH(MarketingVariances[[#Headers],[Sep]],MarketingPlan[#Headers],0))-INDEX(MarketingActual[],MATCH(INDEX(MarketingVariances[],ROW()-ROW(MarketingVariances[[#Headers],[Sep]]),1),INDEX(MarketingPlan[],,1),0),MATCH(MarketingVariances[[#Headers],[Sep]],MarketingActual[#Headers],0)) -> $2,000.00 | L26: =INDEX(MarketingPlan[],MATCH(INDEX(MarketingVariances[],ROW()-ROW(MarketingVariances[[#Headers],[Oct]]),1),INDEX(MarketingPlan[],,1),0),MATCH(MarketingVariances[[#Headers],[Oct]],MarketingPlan[#Headers],0))-INDEX(MarketingActual[],MATCH(INDEX(MarketingVariances[],ROW()-ROW(MarketingVariances[[#Headers],[Oct]]),1),INDEX(MarketingPlan[],,1),0),MATCH(MarketingVariances[[#Headers],[Oct]],MarketingActual[#Headers],0)) -> $2,000.00 | M26: =INDEX(MarketingPlan[],MATCH(INDEX(MarketingVariances[],ROW()-ROW(MarketingVariances[[#Headers],[Nov]]),1),INDEX(MarketingPlan[],,1),0),MATCH(MarketingVariances[[#Headers],[Nov]],MarketingPlan[#Headers],0))-INDEX(MarketingActual[],MATCH(INDEX(MarketingVariances[],ROW()-ROW(MarketingVariances[[#Headers],[Nov]]),1),INDEX(MarketingPlan[],,1),0),MATCH(MarketingVariances[[#Headers],[Nov]],MarketingActual[#Headers],0)) -> $2,000.00 | N26: =INDEX(MarketingPlan[],MATCH(INDEX(MarketingVariances[],ROW()-ROW(MarketingVariances[[#Headers],[Dec]]),1),INDEX(MarketingPlan[],,1),0),MATCH(MarketingVariances[[#Headers],[Dec]],MarketingPlan[#Headers],0))-INDEX(MarketingActual[],MATCH(INDEX(MarketingVariances[],ROW()-ROW(MarketingVariances[[#Headers],[Dec]]),1),INDEX(MarketingPlan[],,1),0),MATCH(MarketingVariances[[#Headers],[Dec]],MarketingActual[#Headers],0)) -> $5,000.00 | O26: =SUM(MarketingVariances[[#This Row],[Jan]:[Dec]]) -> $18,300.00
B27: Miscellaneous expenses | C27: =INDEX(MarketingPlan[],MATCH(INDEX(MarketingVariances[],ROW()-ROW(MarketingVariances[[#Headers],[Jan]]),1),INDEX(MarketingPlan[],,1),0),MATCH(MarketingVariances[[#Headers],[Jan]],MarketingPlan[#Headers],0))-INDEX(MarketingActual[],MATCH(INDEX(MarketingVariances[],ROW()-ROW(MarketingVariances[[#Headers],[Jan]]),1),INDEX(MarketingPlan[],,1),0),MATCH(MarketingVariances[[#Headers],[Jan]],MarketingActual[#Headers],0)) -> $55.00 | D27: =INDEX(MarketingPlan[],MATCH(INDEX(MarketingVariances[],ROW()-ROW(MarketingVariances[[#Headers],[Feb]]),1),INDEX(MarketingPlan[],,1),0),MATCH(MarketingVariances[[#Headers],[Feb]],MarketingPlan[#Headers],0))-INDEX(MarketingActual[],MATCH(INDEX(MarketingVariances[],ROW()-ROW(MarketingVariances[[#Headers],[Feb]]),1),INDEX(MarketingPlan[],,1),0),MATCH(MarketingVariances[[#Headers],[Feb]],MarketingActual[#Headers],0)) -> $44.00 | E27: =INDEX(MarketingPlan[],MATCH(INDEX(MarketingVariances[],ROW()-ROW(MarketingVariances[[#Headers],[Mar]]),1),INDEX(MarketingPlan[],,1),0),MATCH(MarketingVariances[[#Headers],[Mar]],MarketingPlan[#Headers],0))-INDEX(MarketingActual[],MATCH(INDEX(MarketingVariances[],ROW()-ROW(MarketingVariances[[#Headers],[Mar]]),1),INDEX(MarketingPlan[],,1),0),MATCH(MarketingVariances[[#Headers],[Mar]],MarketingActual[#Headers],0)) -> $77.00 | F27: =INDEX(MarketingPlan[],MATCH(INDEX(MarketingVariances[],ROW()-ROW(MarketingVariances[[#Headers],[Apr]]),1),INDEX(MarketingPlan[],,1),0),MATCH(MarketingVariances[[#Headers],[Apr]],MarketingPlan[#Headers],0))-INDEX(MarketingActual[],MATCH(INDEX(MarketingVariances[],ROW()-ROW(MarketingVariances[[#Headers],[Apr]]),1),INDEX(MarketingPlan[],,1),0),MATCH(MarketingVariances[[#Headers],[Apr]],MarketingActual[#Headers],0)) -> ($23.00) | G27: =INDEX(MarketingPlan[],MATCH(INDEX(MarketingVariances[],ROW()-ROW(MarketingVariances[[#Headers],[May]]),1),INDEX(MarketingPlan[],,1),0),MATCH(MarketingVariances[[#Headers],[May]],MarketingPlan[#Headers],0))-INDEX(MarketingActual[],MATCH(INDEX(MarketingVariances[],ROW()-ROW(MarketingVariances[[#Headers],[May]]),1),INDEX(MarketingPlan[],,1),0),MATCH(MarketingVariances[[#Headers],[May]],MarketingActual[#Headers],0)) -> $13.00 | H27: =INDEX(MarketingPlan[],MATCH(INDEX(MarketingVariances[],ROW()-ROW(MarketingVariances[[#Headers],[Jun]]),1),INDEX(MarketingPlan[],,1),0),MATCH(MarketingVariances[[#Headers],[Jun]],MarketingPlan[#Headers],0))-INDEX(MarketingActual[],MATCH(INDEX(MarketingVariances[],ROW()-ROW(MarketingVariances[[#Headers],[Jun]]),1),INDEX(MarketingPlan[],,1),0),MATCH(MarketingVariances[[#Headers],[Jun]],MarketingActual[#Headers],0)) -> ($45.00) | I27: =INDEX(MarketingPlan[],MATCH(INDEX(MarketingVariances[],ROW()-ROW(MarketingVariances[[#Headers],[Jul]]),1),INDEX(MarketingPlan[],,1),0),MATCH(MarketingVariances[[#Headers],[Jul]],MarketingPlan[#Headers],0))-INDEX(MarketingActual[],MATCH(INDEX(MarketingVariances[],ROW()-ROW(MarketingVariances[[#Headers],[Jul]]),1),INDEX(MarketingPlan[],,1),0),MATCH(MarketingVariances[[#Headers],[Jul]],MarketingActual[#Headers],0)) -> $200.00 | J27: =INDEX(MarketingPlan[],MATCH(INDEX(MarketingVariances[],ROW()-ROW(MarketingVariances[[#Headers],[Aug]]),1),INDEX(MarketingPlan[],,1),0),MATCH(MarketingVariances[[#Headers],[Aug]],MarketingPlan[#Headers],0))-INDEX(MarketingActual[],MATCH(INDEX(MarketingVariances[],ROW()-ROW(MarketingVariances[[#Headers],[Aug]]),1),INDEX(MarketingPlan[],,1),0),MATCH(MarketingVariances[[#Headers],[Aug]],MarketingActual[#Headers],0)) -> $200.00 | K27: =INDEX(MarketingPlan[],MATCH(INDEX(MarketingVariances[],ROW()-ROW(MarketingVariances[[#Headers],[Sep]]),1),INDEX(MarketingPlan[],,1),0),MATCH(MarketingVariances[[#Headers],[Sep]],MarketingPlan[#Headers],0))-INDEX(MarketingActual[],MATCH(INDEX(MarketingVariances[],ROW()-ROW(MarketingVariances[[#Headers],[Sep]]),1),INDEX(MarketingPlan[],,1),0),MATCH(MarketingVariances[[#Headers],[Sep]],MarketingActual[#Headers],0)) -> $200.00 | L27: =INDEX(MarketingPlan[],MATCH(INDEX(MarketingVariances[],ROW()-ROW(MarketingVariances[[#Headers],[Oct]]),1),INDEX(MarketingPlan[],,1),0),MATCH(MarketingVariances[[#Headers],[Oct]],MarketingPlan[#Headers],0))-INDEX(MarketingActual[],MATCH(INDEX(MarketingVariances[],ROW()-ROW(MarketingVariances[[#Headers],[Oct]]),1),INDEX(MarketingPlan[],,1),0),MATCH(MarketingVariances[[#Headers],[Oct]],MarketingActual[#Headers],0)) -> $200.00 | M27: =INDEX(MarketingPlan[],MATCH(INDEX(MarketingVariances[],ROW()-ROW(MarketingVariances[[#Headers],[Nov]]),1),INDEX(MarketingPlan[],,1),0),MATCH(MarketingVariances[[#Headers],[Nov]],MarketingPlan[#Headers],0))-INDEX(MarketingActual[],MATCH(INDEX(MarketingVariances[],ROW()-ROW(MarketingVariances[[#Headers],[Nov]]),1),INDEX(MarketingPlan[],,1),0),MATCH(MarketingVariances[[#Headers],[Nov]],MarketingActual[#Headers],0)) -> $200.00 | N27: =INDEX(MarketingPlan[],MATCH(INDEX(MarketingVariances[],ROW()-ROW(MarketingVariances[[#Headers],[Dec]]),1),INDEX(MarketingPlan[],,1),0),MATCH(MarketingVariances[[#Headers],[Dec]],MarketingPlan[#Headers],0))-INDEX(MarketingActual[],MATCH(INDEX(MarketingVariances[],ROW()-ROW(MarketingVariances[[#Headers],[Dec]]),1),INDEX(MarketingPlan[],,1),0),MATCH(MarketingVariances[[#Headers],[Dec]],MarketingActual[#Headers],0)) -> $200.00 | O27: =SUM(MarketingVariances[[#This Row],[Jan]:[Dec]]) -> $1,321.00
B28: Subtotal | C28: =SUBTOTAL(109,MarketingVariances[Jan]) -> $555.00 | D28: =SUBTOTAL(109,MarketingVariances[Feb]) -> ($456.00) | E28: =SUBTOTAL(109,MarketingVariances[Mar]) -> ($23.00) | F28: =SUBTOTAL(109,MarketingVariances[Apr]) -> ($123.00) | G28: =SUBTOTAL(109,MarketingVariances[May]) -> $113.00 | H28: =SUBTOTAL(109,MarketingVariances[Jun]) -> ($825.00) | I28: =SUBTOTAL(109,MarketingVariances[Jul]) -> $8,100.00 | J28: =SUBTOTAL(109,MarketingVariances[Aug]) -> $6,100.00 | K28: =SUBTOTAL(109,MarketingVariances[Sep]) -> $3,100.00 | L28: =SUBTOTAL(109,MarketingVariances[Oct]) -> $8,100.00 | M28: =SUBTOTAL(109,MarketingVariances[Nov]) -> $3,100.00 | N28: =SUBTOTAL(109,MarketingVariances[Dec]) -> $6,900.00 | O28: =SUBTOTAL(109,MarketingVariances[YEAR]) -> $34,641.00
A30: Variance in Training or Travel Costs is auto calculated in Training and Travel Variances table starting in cell at right. Next instruction is in cell A35. | B30: Training/Travel | C30: Jan | D30: Feb | E30: Mar | F30: Apr | G30: May | H30: Jun | I30: Jul | J30: Aug | K30: Sep | L30: Oct | M30: Nov | N30: Dec | O30: YEAR
B31: Training classes | C31: =INDEX(TrainingAndTravelPlan[],MATCH(INDEX(TrainingAndTravelVariances[],ROW()-ROW(TrainingAndTravelVariances[[#Headers],[Jan]]),1),INDEX(TrainingAndTravelPlan[],,1),0),MATCH(TrainingAndTravelVariances[[#Headers],[Jan]],TrainingAndTravelPlan[#Headers],0))-INDEX(TrainingAndTravelActual[],MATCH(INDEX(TrainingAndTravelVariances[],ROW()-ROW(TrainingAndTravelVariances[[#Headers],[Jan]]),1),INDEX(TrainingAndTravelPlan[],,1),0),MATCH(TrainingAndTravelVariances[[#Headers],[Jan]],TrainingAndTravelActual[#Headers],0)) -> $400.00 | D31: =INDEX(TrainingAndTravelPlan[],MATCH(INDEX(TrainingAndTravelVariances[],ROW()-ROW(TrainingAndTravelVariances[[#Headers],[Feb]]),1),INDEX(TrainingAndTravelPlan[],,1),0),MATCH(TrainingAndTravelVariances[[#Headers],[Feb]],TrainingAndTravelPlan[#Headers],0))-INDEX(TrainingAndTravelActual[],MATCH(INDEX(TrainingAndTravelVariances[],ROW()-ROW(TrainingAndTravelVariances[[#Headers],[Feb]]),1),INDEX(TrainingAndTravelPlan[],,1),0),MATCH(TrainingAndTravelVariances[[#Headers],[Feb]],TrainingAndTravelActual[#Headers],0)) -> ($400.00) | E31: =INDEX(TrainingAndTravelPlan[],MATCH(INDEX(TrainingAndTravelVariances[],ROW()-ROW(TrainingAndTravelVariances[[#Headers],[Mar]]),1),INDEX(TrainingAndTravelPlan[],,1),0),MATCH(TrainingAndTravelVariances[[#Headers],[Mar]],TrainingAndTravelPlan[#Headers],0))-INDEX(TrainingAndTravelActual[],MATCH(INDEX(TrainingAndTravelVariances[],ROW()-ROW(TrainingAndTravelVariances[[#Headers],[Mar]]),1),INDEX(TrainingAndTravelPlan[],,1),0),MATCH(TrainingAndTravelVariances[[#Headers],[Mar]],TrainingAndTravelActual[#Headers],0)) -> $600.00 | F31: =INDEX(TrainingAndTravelPlan[],MATCH(INDEX(TrainingAndTravelVariances[],ROW()-ROW(TrainingAndTravelVariances[[#Headers],[Apr]]),1),INDEX(TrainingAndTravelPlan[],,1),0),MATCH(TrainingAndTravelVariances[[#Headers],[Apr]],TrainingAndTravelPlan[#Headers],0))-INDEX(TrainingAndTravelActual[],MATCH(INDEX(TrainingAndTravelVariances[],ROW()-ROW(TrainingAndTravelVariances[[#Headers],[Apr]]),1),INDEX(TrainingAndTravelPlan[],,1),0),MATCH(TrainingAndTravelVariances[[#Headers],[Apr]],TrainingAndTravelActual[#Headers],0)) -> $400.00 | G31: =INDEX(TrainingAndTravelPlan[],MATCH(INDEX(TrainingAndTravelVariances[],ROW()-ROW(TrainingAndTravelVariances[[#Headers],[May]]),1),INDEX(TrainingAndTravelPlan[],,1),0),MATCH(TrainingAndTravelVariances[[#Headers],[May]],TrainingAndTravelPlan[#Headers],0))-INDEX(TrainingAndTravelActual[],MATCH(INDEX(TrainingAndTravelVariances[],ROW()-ROW(TrainingAndTravelVariances[[#Headers],[May]]),1),INDEX(TrainingAndTravelPlan[],,1),0),MATCH(TrainingAndTravelVariances[[#Headers],[May]],TrainingAndTravelActual[#Headers],0)) -> $800.00 | H31: =INDEX(TrainingAndTravelPlan[],MATCH(INDEX(TrainingAndTravelVariances[],ROW()-ROW(TrainingAndTravelVariances[[#Headers],[Jun]]),1),INDEX(TrainingAndTravelPlan[],,1),0),MATCH(TrainingAndTravelVariances[[#Headers],[Jun]],TrainingAndTravelPlan[#Headers],0))-INDEX(TrainingAndTravelActual[],MATCH(INDEX(TrainingAndTravelVariances[],ROW()-ROW(TrainingAndTravelVariances[[#Headers],[Jun]]),1),INDEX(TrainingAndTravelPlan[],,1),0),MATCH(TrainingAndTravelVariances[[#Headers],[Jun]],TrainingAndTravelActual[#Headers],0)) -> ($800.00) | I31: =INDEX(TrainingAndTravelPlan[],MATCH(INDEX(TrainingAndTravelVariances[],ROW()-ROW(TrainingAndTravelVariances[[#Headers],[Jul]]),1),INDEX(TrainingAndTravelPlan[],,1),0),MATCH(TrainingAndTravelVariances[[#Headers],[Jul]],TrainingAndTravelPlan[#Headers],0))-INDEX(TrainingAndTravelActual[],MATCH(INDEX(TrainingAndTravelVariances[],ROW()-ROW(TrainingAndTravelVariances[[#Headers],[Jul]]),1),INDEX(TrainingAndTravelPlan[],,1),0),MATCH(TrainingAndTravelVariances[[#Headers],[Jul]],TrainingAndTravelActual[#Headers],0)) -> $2,000.00 | J31: =INDEX(TrainingAndTravelPlan[],MATCH(INDEX(TrainingAndTravelVariances[],ROW()-ROW(TrainingAndTravelVariances[[#Headers],[Aug]]),1),INDEX(TrainingAndTravelPlan[],,1),0),MATCH(TrainingAndTravelVariances[[#Headers],[Aug]],TrainingAndTravelPlan[#Headers],0))-INDEX(TrainingAndTravelActual[],MATCH(INDEX(TrainingAndTravelVariances[],ROW()-ROW(TrainingAndTravelVariances[[#Headers],[Aug]]),1),INDEX(TrainingAndTravelPlan[],,1),0),MATCH(TrainingAndTravelVariances[[#Headers],[Aug]],TrainingAndTravelActual[#Headers],0)) -> $2,000.00 | K31: =INDEX(TrainingAndTravelPlan[],MATCH(INDEX(TrainingAndTravelVariances[],ROW()-ROW(TrainingAndTravelVariances[[#Headers],[Sep]]),1),INDEX(TrainingAndTravelPlan[],,1),0),MATCH(TrainingAndTravelVariances[[#Headers],[Sep]],TrainingAndTravelPlan[#Headers],0))-INDEX(TrainingAndTravelActual[],MATCH(INDEX(TrainingAndTravelVariances[],ROW()-ROW(TrainingAndTravelVariances[[#Headers],[Sep]]),1),INDEX(TrainingAndTravelPlan[],,1),0),MATCH(TrainingAndTravelVariances[[#Headers],[Sep]],TrainingAndTravelActual[#Headers],0)) -> $2,000.00 | L31: =INDEX(TrainingAndTravelPlan[],MATCH(INDEX(TrainingAndTravelVariances[],ROW()-ROW(TrainingAndTravelVariances[[#Headers],[Oct]]),1),INDEX(TrainingAndTravelPlan[],,1),0),MATCH(TrainingAndTravelVariances[[#Headers],[Oct]],TrainingAndTravelPlan[#Headers],0))-INDEX(TrainingAndTravelActual[],MATCH(INDEX(TrainingAndTravelVariances[],ROW()-ROW(TrainingAndTravelVariances[[#Headers],[Oct]]),1),INDEX(TrainingAndTravelPlan[],,1),0),MATCH(TrainingAndTravelVariances[[#Headers],[Oct]],TrainingAndTravelActual[#Headers],0)) -> $2,000.00 | M31: =INDEX(TrainingAndTravelPlan[],MATCH(INDEX(TrainingAndTravelVariances[],ROW()-ROW(TrainingAndTravelVariances[[#Headers],[Nov]]),1),INDEX(TrainingAndTravelPlan[],,1),0),MATCH(TrainingAndTravelVariances[[#Headers],[Nov]],TrainingAndTravelPlan[#Headers],0))-INDEX(TrainingAndTravelActual[],MATCH(INDEX(TrainingAndTravelVariances[],ROW()-ROW(TrainingAndTravelVariances[[#Headers],[Nov]]),1),INDEX(TrainingAndTravelPlan[],,1),0),MATCH(TrainingAndTravelVariances[[#Headers],[Nov]],TrainingAndTravelActual[#Headers],0)) -> $2,000.00 | N31: =INDEX(TrainingAndTravelPlan[],MATCH(INDEX(TrainingAndTravelVariances[],ROW()-ROW(TrainingAndTravelVariances[[#Headers],[Dec]]),1),INDEX(TrainingAndTravelPlan[],,1),0),MATCH(TrainingAndTravelVariances[[#Headers],[Dec]],TrainingAndTravelPlan[#Headers],0))-INDEX(TrainingAndTravelActual[],MATCH(INDEX(TrainingAndTravelVariances[],ROW()-ROW(TrainingAndTravelVariances[[#Headers],[Dec]]),1),INDEX(TrainingAndTravelPlan[],,1),0),MATCH(TrainingAndTravelVariances[[#Headers],[Dec]],TrainingAndTravelActual[#Headers],0)) -> $2,000.00 | O31: =SUM(TrainingAndTravelVariances[[#This Row],[Jan]:[Dec]]) -> $13,000.00
B32: Training-related travel costs | C32: =INDEX(TrainingAndTravelPlan[],MATCH(INDEX(TrainingAndTravelVariances[],ROW()-ROW(TrainingAndTravelVariances[[#Headers],[Jan]]),1),INDEX(TrainingAndTravelPlan[],,1),0),MATCH(TrainingAndTravelVariances[[#Headers],[Jan]],TrainingAndTravelPlan[#Headers],0))-INDEX(TrainingAndTravelActual[],MATCH(INDEX(TrainingAndTravelVariances[],ROW()-ROW(TrainingAndTravelVariances[[#Headers],[Jan]]),1),INDEX(TrainingAndTravelPlan[],,1),0),MATCH(TrainingAndTravelVariances[[#Headers],[Jan]],TrainingAndTravelActual[#Headers],0)) -> $800.00 | D32: =INDEX(TrainingAndTravelPlan[],MATCH(INDEX(TrainingAndTravelVariances[],ROW()-ROW(TrainingAndTravelVariances[[#Headers],[Feb]]),1),INDEX(TrainingAndTravelPlan[],,1),0),MATCH(TrainingAndTravelVariances[[#Headers],[Feb]],TrainingAndTravelPlan[#Headers],0))-INDEX(TrainingAndTravelActual[],MATCH(INDEX(TrainingAndTravelVariances[],ROW()-ROW(TrainingAndTravelVariances[[#Headers],[Feb]]),1),INDEX(TrainingAndTravelPlan[],,1),0),MATCH(TrainingAndTravelVariances[[#Headers],[Feb]],TrainingAndTravelActual[#Headers],0)) -> ($200.00) | E32: =INDEX(TrainingAndTravelPlan[],MATCH(INDEX(TrainingAndTravelVariances[],ROW()-ROW(TrainingAndTravelVariances[[#Headers],[Mar]]),1),INDEX(TrainingAndTravelPlan[],,1),0),MATCH(TrainingAndTravelVariances[[#Headers],[Mar]],TrainingAndTravelPlan[#Headers],0))-INDEX(TrainingAndTravelActual[],MATCH(INDEX(TrainingAndTravelVariances[],ROW()-ROW(TrainingAndTravelVariances[[#Headers],[Mar]]),1),INDEX(TrainingAndTravelPlan[],,1),0),MATCH(TrainingAndTravelVariances[[#Headers],[Mar]],TrainingAndTravelActual[#Headers],0)) -> $600.00 | F32: =INDEX(TrainingAndTravelPlan[],MATCH(INDEX(TrainingAndTravelVariances[],ROW()-ROW(TrainingAndTravelVariances[[#Headers],[Apr]]),1),INDEX(TrainingAndTravelPlan[],,1),0),MATCH(TrainingAndTravelVariances[[#Headers],[Apr]],TrainingAndTravelPlan[#Headers],0))-INDEX(TrainingAndTravelActual[],MATCH(INDEX(TrainingAndTravelVariances[],ROW()-ROW(TrainingAndTravelVariances[[#Headers],[Apr]]),1),INDEX(TrainingAndTravelPlan[],,1),0),MATCH(TrainingAndTravelVariances[[#Headers],[Apr]],TrainingAndTravelActual[#Headers],0)) -> $800.00 | G32: =INDEX(TrainingAndTravelPlan[],MATCH(INDEX(TrainingAndTravelVariances[],ROW()-ROW(TrainingAndTravelVariances[[#Headers],[May]]),1),INDEX(TrainingAndTravelPlan[],,1),0),MATCH(TrainingAndTravelVariances[[#Headers],[May]],TrainingAndTravelPlan[#Headers],0))-INDEX(TrainingAndTravelActual[],MATCH(INDEX(TrainingAndTravelVariances[],ROW()-ROW(TrainingAndTravelVariances[[#Headers],[May]]),1),INDEX(TrainingAndTravelPlan[],,1),0),MATCH(TrainingAndTravelVariances[[#Headers],[May]],TrainingAndTravelActual[#Headers],0)) -> $1,200.00 | H32: =INDEX(TrainingAndTravelPlan[],MATCH(INDEX(TrainingAndTravelVariances[],ROW()-ROW(TrainingAndTravelVariances[[#Headers],[Jun]]),1),INDEX(TrainingAndTravelPlan[],,1),0),MATCH(TrainingAndTravelVariances[[#Headers],[Jun]],TrainingAndTravelPlan[#Headers],0))-INDEX(TrainingAndTravelActual[],MATCH(INDEX(TrainingAndTravelVariances[],ROW()-ROW(TrainingAndTravelVariances[[#Headers],[Jun]]),1),INDEX(TrainingAndTravelPlan[],,1),0),MATCH(TrainingAndTravelVariances[[#Headers],[Jun]],TrainingAndTravelActual[#Headers],0)) -> ($1,500.00) | I32: =INDEX(TrainingAndTravelPlan[],MATCH(INDEX(TrainingAndTravelVariances[],ROW()-ROW(TrainingAndTravelVariances[[#Headers],[Jul]]),1),INDEX(TrainingAndTravelPlan[],,1),0),MATCH(TrainingAndTravelVariances[[#Headers],[Jul]],TrainingAndTravelPlan[#Headers],0))-INDEX(TrainingAndTravelActual[],MATCH(INDEX(TrainingAndTravelVariances[],ROW()-ROW(TrainingAndTravelVariances[[#Headers],[Jul]]),1),INDEX(TrainingAndTravelPlan[],,1),0),MATCH(TrainingAndTravelVariances[[#Headers],[Jul]],TrainingAndTravelActual[#Headers],0)) -> $2,000.00 | J32: =INDEX(TrainingAndTravelPlan[],MATCH(INDEX(TrainingAndTravelVariances[],ROW()-ROW(TrainingAndTravelVariances[[#Headers],[Aug]]),1),INDEX(TrainingAndTravelPlan[],,1),0),MATCH(TrainingAndTravelVariances[[#Headers],[Aug]],TrainingAndTravelPlan[#Headers],0))-INDEX(TrainingAndTravelActual[],MATCH(INDEX(TrainingAndTravelVariances[],ROW()-ROW(TrainingAndTravelVariances[[#Headers],[Aug]]),1),INDEX(TrainingAndTravelPlan[],,1),0),MATCH(TrainingAndTravelVariances[[#Headers],[Aug]],TrainingAndTravelActual[#Headers],0)) -> $2,000.00 | K32: =INDEX(TrainingAndTravelPlan[],MATCH(INDEX(TrainingAndTravelVariances[],ROW()-ROW(TrainingAndTravelVariances[[#Headers],[Sep]]),1),INDEX(TrainingAndTravelPlan[],,1),0),MATCH(TrainingAndTravelVariances[[#Headers],[Sep]],TrainingAndTravelPlan[#Headers],0))-INDEX(TrainingAndTravelActual[],MATCH(INDEX(TrainingAndTravelVariances[],ROW()-ROW(TrainingAndTravelVariances[[#Headers],[Sep]]),1),INDEX(TrainingAndTravelPlan[],,1),0),MATCH(TrainingAndTravelVariances[[#Headers],[Sep]],TrainingAndTravelActual[#Headers],0)) -> $2,000.00 | L32: =INDEX(TrainingAndTravelPlan[],MATCH(INDEX(TrainingAndTravelVariances[],ROW()-ROW(TrainingAndTravelVariances[[#Headers],[Oct]]),1),INDEX(TrainingAndTravelPlan[],,1),0),MATCH(TrainingAndTravelVariances[[#Headers],[Oct]],TrainingAndTravelPlan[#Headers],0))-INDEX(TrainingAndTravelActual[],MATCH(INDEX(TrainingAndTravelVariances[],ROW()-ROW(TrainingAndTravelVariances[[#Headers],[Oct]]),1),INDEX(TrainingAndTravelPlan[],,1),0),MATCH(TrainingAndTravelVariances[[#Headers],[Oct]],TrainingAndTravelActual[#Headers],0)) -> $2,000.00 | M32: =INDEX(TrainingAndTravelPlan[],MATCH(INDEX(TrainingAndTravelVariances[],ROW()-ROW(TrainingAndTravelVariances[[#Headers],[Nov]]),1),INDEX(TrainingAndTravelPlan[],,1),0),MATCH(TrainingAndTravelVariances[[#Headers],[Nov]],TrainingAndTravelPlan[#Headers],0))-INDEX(TrainingAndTravelActual[],MATCH(INDEX(TrainingAndTravelVariances[],ROW()-ROW(TrainingAndTravelVariances[[#Headers],[Nov]]),1),INDEX(TrainingAndTravelPlan[],,1),0),MATCH(TrainingAndTravelVariances[[#Headers],[Nov]],TrainingAndTravelActual[#Headers],0)) -> $2,000.00 | N32: =INDEX(TrainingAndTravelPlan[],MATCH(INDEX(TrainingAndTravelVariances[],ROW()-ROW(TrainingAndTravelVariances[[#Headers],[Dec]]),1),INDEX(TrainingAndTravelPlan[],,1),0),MATCH(TrainingAndTravelVariances[[#Headers],[Dec]],TrainingAndTravelPlan[#Headers],0))-INDEX(TrainingAndTravelActual[],MATCH(INDEX(TrainingAndTravelVariances[],ROW()-ROW(TrainingAndTravelVariances[[#Headers],[Dec]]),1),INDEX(TrainingAndTravelPlan[],,1),0),MATCH(TrainingAndTravelVariances[[#Headers],[Dec]],TrainingAndTravelActual[#Headers],0)) -> $2,000.00 | O32: =SUM(TrainingAndTravelVariances[[#This Row],[Jan]:[Dec]]) -> $13,700.00
B33: Subtotal | C33: =SUBTOTAL(109,TrainingAndTravelVariances[Jan]) -> $1,200.00 | D33: =SUBTOTAL(109,TrainingAndTravelVariances[Feb]) -> ($600.00) | E33: =SUBTOTAL(109,TrainingAndTravelVariances[Mar]) -> $1,200.00 | F33: =SUBTOTAL(109,TrainingAndTravelVariances[Apr]) -> $1,200.00 | G33: =SUBTOTAL(109,TrainingAndTravelVariances[May]) -> $2,000.00 | H33: =SUBTOTAL(109,TrainingAndTravelVariances[Jun]) -> ($2,300.00) | I33: =SUBTOTAL(109,TrainingAndTravelVariances[Jul]) -> $4,000.00 | J33: =SUBTOTAL(109,TrainingAndTravelVariances[Aug]) -> $4,000.00 | K33: =SUBTOTAL(109,TrainingAndTravelVariances[Sep]) -> $4,000.00 | L33: =SUBTOTAL(109,TrainingAndTravelVariances[Oct]) -> $4,000.00 | M33: =SUBTOTAL(109,TrainingAndTravelVariances[Nov]) -> $4,000.00 | N33: =SUBTOTAL(109,TrainingAndTravelVariances[Dec]) -> $4,000.00 | O33: =SUBTOTAL(109,TrainingAndTravelVariances[YEAR]) -> $26,700.00
A35: Expense Variances are auto calculated in Total Variance table starting in cell at right. | B35: TOTALS | C35: Jan | D35: Feb | E35: Mar | F35: Apr | G35: May | H35: Jun | I35: Jul | J35: Aug | K35: Sep | L35: Oct | M35: Nov | N35: Dec | O35: Year
B36: Monthly Actual Expenses | C36: =TrainingAndTravelVariances[[#Totals],[Jan]]+MarketingVariances[[#Totals],[Jan]]+OfficeVariances[[#Totals],[Jan]]+EmployeeVariances[[#Totals],[Jan]] -> $1,738.00 | D36: =TrainingAndTravelVariances[[#Totals],[Feb]]+MarketingVariances[[#Totals],[Feb]]+OfficeVariances[[#Totals],[Feb]]+EmployeeVariances[[#Totals],[Feb]] -> ($984.00) | E36: =TrainingAndTravelVariances[[#Totals],[Mar]]+MarketingVariances[[#Totals],[Mar]]+OfficeVariances[[#Totals],[Mar]]+EmployeeVariances[[#Totals],[Mar]] -> $1,255.00 | F36: =TrainingAndTravelVariances[[#Totals],[Apr]]+MarketingVariances[[#Totals],[Apr]]+OfficeVariances[[#Totals],[Apr]]+EmployeeVariances[[#Totals],[Apr]] -> $301.00 | G36: =TrainingAndTravelVariances[[#Totals],[May]]+MarketingVariances[[#Totals],[May]]+OfficeVariances[[#Totals],[May]]+EmployeeVariances[[#Totals],[May]] -> $1,440.00 | H36: =TrainingAndTravelVariances[[#Totals],[Jun]]+MarketingVariances[[#Totals],[Jun]]+OfficeVariances[[#Totals],[Jun]]+EmployeeVariances[[#Totals],[Jun]] -> ($3,744.00) | I36: =TrainingAndTravelVariances[[#Totals],[Jul]]+MarketingVariances[[#Totals],[Jul]]+OfficeVariances[[#Totals],[Jul]]+EmployeeVariances[[#Totals],[Jul]] -> $134,695.00 | J36: =TrainingAndTravelVariances[[#Totals],[Aug]]+MarketingVariances[[#Totals],[Aug]]+OfficeVariances[[#Totals],[Aug]]+EmployeeVariances[[#Totals],[Aug]] -> $138,918.00 | K36: =TrainingAndTravelVariances[[#Totals],[Sep]]+MarketingVariances[[#Totals],[Sep]]+OfficeVariances[[#Totals],[Sep]]+EmployeeVariances[[#Totals],[Sep]] -> $135,918.00 | L36: =TrainingAndTravelVariances[[#Totals],[Oct]]+MarketingVariances[[#Totals],[Oct]]+OfficeVariances[[#Totals],[Oct]]+EmployeeVariances[[#Totals],[Oct]] -> $140,918.00 | M36: =TrainingAndTravelVariances[[#Totals],[Nov]]+MarketingVariances[[#Totals],[Nov]]+OfficeVariances[[#Totals],[Nov]]+EmployeeVariances[[#Totals],[Nov]] -> $136,218.00 | N36: =TrainingAndTravelVariances[[#Totals],[Dec]]+MarketingVariances[[#Totals],[Dec]]+OfficeVariances[[#Totals],[Dec]]+EmployeeVariances[[#Totals],[Dec]] -> $140,018.00 | O36: =TrainingAndTravelVariances[[#Totals],[YEAR]]+MarketingVariances[[#Totals],[YEAR]]+OfficeVariances[[#Totals],[YEAR]]+EmployeeVariances[[#Totals],[YEAR]] -> $826,691.00
B37: TOTAL Actual Expenses | C37: =SUM($C$36:C36) -> $1,738.00 | D37: =SUM($C$36:D36) -> $754.00 | E37: =SUM($C$36:E36) -> $2,009.00 | F37: =SUM($C$36:F36) -> $2,310.00 | G37: =SUM($C$36:G36) -> $3,750.00 | H37: =SUM($C$36:H36) -> $6.00 | I37: =SUM($C$36:I36) -> $134,701.00 | J37: =SUM($C$36:J36) -> $273,619.00 | K37: =SUM($C$36:K36) -> $409,537.00 | L37: =SUM($C$36:L36) -> $550,455.00 | M37: =SUM($C$36:M36) -> $686,673.00 | N37: =SUM($C$36:N36) -> $826,691.00

Sheet EXPENSE ANALYSIS
A1: Annual Planned and Actual Expenses, Expense Variances, and Variance Percentage are auto updated for each Expense Category in this worksheet. Helpful instructions on how to use this worksheet are in cells in this column. Arrow down to get started.
A2: Company Name is auto updated in cell at right. Enter Logo in cell F2. | B2: ='PLANNED EXPENSES'!B2:D3 -> Company Name | F2: Logo placeholder is in this cell.
A3: Title of this worksheet is in cell E3. Next instruction is in cell A5. | E3: =worksheet_title -> Detailed Expense Estimates
A5: Planned Expenses, Actual Expenses, Expense Variance, and Variance Percentage are auto calculated in Analysis table starting in cell at right. Next instruction is in cell A12. | B5: Expense Category | C5: Planned Expenses | D5: Actual Expenses | E5: Expense Variances | F5: Variance Percentage
B6: Employee Costs | C6: =EmployeePlan[[#Totals],[YEAR]] -> $1,355,090.00 | D6: =EmployeeActual[[#Totals],[YEAR]] -> $659,130.00 | E6: =C6-D6 -> $695,960.00 | F6: =E6/C6 -> 51%
B7: ='PLANNED EXPENSES'!B10 -> Office Costs | C7: =OfficePlan[[#Totals],[YEAR]] -> $138,740.00 | D7: =OfficeActual[[#Totals],[YEAR]] -> $69,350.00 | E7: =C7-D7 -> $69,390.00 | F7: =E7/C7 -> 50%
B8: ='PLANNED EXPENSES'!B21 -> Marketing Costs | C8: =MarketingPlan[[#Totals],[YEAR]] -> $67,800.00 | D8: =MarketingActual[[#Totals],[YEAR]] -> $33,159.00 | E8: =C8-D8 -> $34,641.00 | F8: =E8/C8 -> 51%
B9: ='PLANNED EXPENSES'!B30 -> Training/Travel | C9: =TrainingAndTravelPlan[[#Totals],[YEAR]] -> $48,000.00 | D9: =TrainingAndTravelActual[[#Totals],[YEAR]] -> $21,300.00 | E9: =C9-D9 -> $26,700.00 | F9: =E9/C9 -> 56%
B10: ='PLANNED EXPENSES'!B35 -> TOTALS | C10: ='PLANNED EXPENSES'!O36 -> $1,609,630.00 | D10: ='ACTUAL EXPENSES'!O36 -> $782,939.00 | E10: =C10-D10 -> $826,691.00 | F10: =E10/C10 -> 51%
A12: Planned Expenses pie chart is in cell at right and Actual Expenses pie chart in cell D12. Next instruction is in cell A14. | B12: Pie chart showing planned expenses on various categories is in this cell.
A14: Chart showing Planned, Actual, and Variance in Monthly Expenses is in cell at right.
